Workbook

Sheet Help
A1: Help! Nate's English/Italian Flash Cards on a Spreadsheet
I4: Return_To_Drill
A5: Start-up: | I5: Return_To_Drill
B6: Open the Italian Flash.xls spreadsheet in Excel.
B7: Click the "Start" button to initialize scoring after first opening spreadsheet.
B8: Enable Macros, if your computer requests.
B9: Click on the tab Drill (if it doesn't open on that tab).
B10: Change the "Zoom" percentage on the Excel standard toolbar such that the red borders show.
B11: Turn off cursor movement after an entry and autocomplete:
C12: 1) Click on Excel
C13: 2) Click on Preferences
C14: 3) Click on Edit
C15: 4) Uncheck the box for: Move selection after RETURN
C16: 5) Uncheck the bos for: Autocomplete for cell values
A33: Use: | I33: Return_To_Drill
B34: 1) Click on the "New Try..." button, or Hold down control and type x (Ctrl-x)
C35: A random selection is made from the range of your chosen vocabulary list.
B36: 2) Type in your answer
C37: The cursor will be in cell C7.
C38: When you hit return, your answer is evaluated as either: "Cool!" or "Bad News!"
C39: (or the equivalent)
C40: Case is not evaluated. Spaces and punctuation are compared.
C41: Try again: The answer appears after you have typed at least one letter and hit the return.
E42: You may also hit the "Show Answer" button to see the answer.
E43: You may practice the correct answer any number of times.
B44: 3) Get a new word/phrase
C45: Click on the "New Try" button or do a control-x again!
A60: Change the answer from Italian to English and back: | I60: Return_To_Drill
B61: 1) Click on the "Change, List, Target, or Range" button
B62: 2) Click on the target button for the target (Italian or English) you would like to guess.
A84: Symbol Codes: | I84: Return_To_Drill
B85: For characters that do not appear on your keyboard:
C86: Type in cell c7 the related symbol code.
C87: For example, to type an é, type a 2 instead.
C88: After you hit return cell C8 translates your word with the proper Italian character, like é.
B89: When adding new words to a vocabulary list:
C90: You must type the symbol code (like 1) and finish the word.
C91: Hit return. Then hold down on ctrl and type a z (Ctrl-z).
C92: This changes any symbol codes in the selected cell into Italian accented characters.
A116: Compliments & Insults | I116: Return_To_Drill
B117: Changing a compliment or an insult:
E118: Stay on the Drill tab.
D119: 1) Turn off protection. (Click on: Tools, Protection, Unprotect Sheet, and type in password.)
D120: 2) Find the compliment in column B or the insult in column C starting in row 60 of the Drill tab.
D121: 3) Retype the cell.
D122: 4) Turn on protection. (Click on: Tools, Protection, Protect Sheet, and type password twice.)
E123: (On the pulldown you should make sure to keep "Select locked cells" and "Select
F124: unlocked cells" checked.)
B126: Adding a compliment or an insult:
E127: Stay on the Drill tab.
D128: 1) Turn off protection. (See above.)
D129: 2) Copy the last number next to the last compliment/insult pairs in the A column.
D130: 3) Paste the number into the next cell down in column A.
D131: 4) In column B of that new row, type in the compliment and in column C, the insult.
E132: (Compliments and insults must be put in pairs.)
D133: 5) Extend the named area, GoodBad, to cover the new pairs.
E134: A) Selct the current area by clicking on F5.
E135: B) Extend the area by holding down on the shift key and clicking on the C column
F136: of the new last row.
E137: C) Delete the old area by clicking Insert, Name, Define, (scroll down to) BadGood,
F138: Delete, OK.
E139: D) Add the new area (still highlighted) by clicking, Insert, Name, Define.
F140: Then type in BadGood.
F141: Then click on Add, OK.
D142: 6) Change cell C58 to the new number of lines (the last number for a line in column A).
D143: 7) Turn on protection.
A149: Change vocabulary set (the list or the tab) or range: | I149: Return_To_Drill
B150: 1) Click on the "Change List, Target, or Range" button
B151: 2) Click on your choice of a vocabulary set button (like "Set C")
B152: 3) Choose a range of the vocabulary--a subset of the words on that tab
C153: Leave these cells blank (E7 and E8) under Enter Range Below: (blank = all)
D154: to use all words on the tab.
C155: Type in a range to get a limited drill selection
D156: (Start at: 100 End at: 120 picks only from words 100 to 120).
B157: 4) Click on the "Return to Drill" button to continue
A174: Adding words: | I174: Return_To_Drill
B175: Chose vocabulary
C176: ="Chose one of the five vocabulary tabs: "&Drill!G19&", "&Drill!G20&", "&Drill!G21&", "&Drill!G22&", "&Drill!G23&"." -> Chose one of the five vocabulary tabs: Vocabulary, Phrases, Set A, Set B, Set C.
B177: Find last words and add at end
C178: Do not overtype columns A, F, G, or H.
D179: ="Type "&Drill!M3&" into column B and "&Drill!M4&" into column C." -> Type English into column B and Italian into column C.
C180: Additions must go immediately after the last filled-in rows.
D181: The program does not look past the first blank it comes to!!!
C182: For accented characters not on your keyboard, type in the symbol code,
D183: and finish typing the cell.
D184: Then hold down on Ctrl and type a z (Ctrl-z).
D185: The symbol codes are replaced by the accented Italian characters in the
E186: highlighted cell.
C187: The program is initialized for up to 3,000 translations per tab (15,000 total).
C188: ="Add hints and comments ("&Drill!M3&" hints in column D; "&Drill!M4&" hints in column E)." -> Add hints and comments (English hints in column D; Italian hints in column E).
D189: Pin down ambiguous possibilities. Add parts of speech or any other information.
C190: You may remove a translation by overtyping it with a new definition.
C191: You may also copy and paste over a group of rows from columns B to E.
D192: Do not use the row Delete or Cut commands
E193: unless you know how to fix columns A and F, G and H!
B210: To correct words | I210: Return_To_Drill
C211: Find the row number of the incorrect definition listed below your entry.
C212: Click on the tab for the current set of vocabulary words.
C213: Go down to the problem row as listed in column A (not the spreadsheet row numbers).
C214: Overtype the offending cell.
C215: If you need accented characters, use the symbol codes, finish the cell, hit return, and
D216: type Ctrl-z.
A234: Adding new vocabularies: | I234: Return_To_Drill
B235: You may remove the translations or any unwanted vocabularies
D236: by clearing the contents of the vocabulary area.
C237: Select the vocabulary tab that you wish to renew.
C238: Click on the first definition cell (B7).
C239: Hold down on shift and click on the last definition cell at column E
D240: (or go to the end cell (E3000), using the side scrolls to get there.
D241: This should highlight the entire filled vocabulary area.
E242: With the cursor over the last cell, right click to get a menu and
F243: click on Clear Contents.
B244: You may now start at Row 7 entering new words and meanings.
A269: Scoring: | I269: Return_To_Drill
B270: Every time you hit Ctrl-x or the "New Try.." button to get a new word or phrase,
C271: Challenges increases by one.
B272: In order to increase your successes score, you must get the answer right on the last try.
B273: Your challenges, successes and score are saved when you save.
B274: The "Reset Score" button sets challenges, successes and score to zero.
B275: The "Scoring On/Off" button allows you to turn on or off the scoring.
C276: When scoring is turned off, an automatic "Reset Score" is done.
A299: Weights: | I299: Return_To_Drill
B300: Frequency weighting increments are set using the up/down toggle. Use this toggle when
C301: you are confident that you have learned a word or phrase or when you want to see
C302: the word or phrase more often.
D303: Increasing the Frequency Weight increases the probability of the word appearing.
D304: Decreasing it all the way to -100% prevents the word from appearing at all.
D305: The weights are stored in column G of the vocabulary lists.
D306: (The only way to remove a -100% is to manually change column G.)
A331: Protection | I331: Return_To_Drill
D332: 1) To turn off protection.
F333: Click on:
G334: Tools
G335: Protection
G336: Unprotect Sheet
G337: [Type password] (The initial password is | L337: nate | N337: -- store yours here too!)
D338: 2) To turn on protection.
F339: Click on:
G340: Tools
G341: Protection
G342: Protect Sheet
G343: [Type your password, twice]
E344: (On the pulldown you should make sure to keep "Select locked cells" and "Select
F345: unlocked cells" checked.)
A364: For the teacher: | I364: Return_To_Drill
B365: You may create your own vocabulary tabs
D366: and have students cut and paste these over the ones that come with the product.
B367: Most students these days have home computers with Microsoft Excel © and e-mail.
C368: A copy of a new vocabulary could be attached to an e-mail and sent to them.
B369: The vocabulary tab may be sent as a separate spreadsheet.
C370: After saving the attachment, the student may open it
D371: and click the very upper left corner (left of A, above 1) to highlight the entire sheet.
D372: Then the student should copy the sheet.
D373: Then the student should open Italian Flash.
D374: Then the student should select the tab that you would like them to replace
J375: (say, Set B).
D376: The student should open this tab and highlight cell A1.
D377: The new sheet may then be pasted directly over the entire tab.
D378: The student should save this new Italian Flash.
A387: Sharing: | I387: Return_To_Drill
B388: If you or your students create a useful vocabulary,
C389: for example, if you have entered in order the words for a particular textbook,
D390: or the obscure words of a novel,
C391: send the vocabulary to me,
C392: and I will post it on the www.dickmeyerconsulting.com website as a free download for others.
A413: Tips: | I413: Return_To_Drill
B414: Limit your range
C415: Set a short range to learn a limited set of words at a time.
C416: You can begin with the range 1 to 20 or 30, for example.
C417: When you are scoring well, move to the next 20 or 30.
C418: Return to earlier sets often to retain your learning.
B419: Easy start up | AA419: nate
C420: You can put an icon on your desktop by finding Italian Flash,
D421: using My Computer (clones only), where you have saved it.
D422: Right click on the Italian Flash icon when you have found it
E423: and click on "Create Shortcut."
E424: Use your mouse to drag the shortcut icon to your desktop.
B425: When to save
C426: Save every time you enter new vocabulary words. Save at the end of a session.
B427: Screen size
C428: Different size monitors show different amounts of the Drill tab.
C429: You should change the %s in the zoom box of the Standard Toolbar
D430: until cell E23 fits into the lower right corner of the screen.
B431: Backing up
C432: After adding vocabulary, always save the spreadsheet on a web drive,
D433: or "thumb drive" (any memory away from the hard disk).
A438: Other languages: | I438: Return_To_Drill
B439: By changing some of the formulas, this spreadsheet can be adapted to other languages
C440: based on the roman alphabet, but having characters not found on American keyboards.
B441: English/French, English/Spanish, English/Persian, English/Chinese (Pinyin), and English
C442: vocabulary-builder versions are also available.
C443: If you would like another language,
D444: please send me the characters that I would need to install as translations,
E445: and sample translations.
I449: © Nathan Dickmeyer, 2023

Sheet Drill
B1: Nate's Italian-English Spreadsheet Flashcards | G1: Don't lock | L1: Safe | M1: 0
D3: =" "&"Symbol Codes" -> Symbol Codes | M3: =U12 -> English
D4: =" "&Drill!M12 -> à = 1; è = 2; ì = 3; ò = 4; ù = 5 | M4: =U13 -> Italian
A5: Need Help? | D5: =" "&Drill!Q12 -> 6 = 6; 7 = 7; 8 = 8; 9 = 9 | M5: Character: | O5: à | P5: è | Q5: ì | R5: ò | S5: ù | T5: 6 | U5: 7 | V5: 8 | W5: 9 | X5: à | Y5: è | Z5: ì | AA5: ò | AB5: ù | AC5: 6 | AD5: 7 | AE5: 8 | AF5: 9 | AG5: à | AH5: è | AI5: ì | AJ5: ò | AK5: ù | AL5: 6 | AM5: 7 | AN5: 8 | AO5: 9 | AP5: à | AQ5: è | AR5: í | AS5: ò | AT5: ù | AU5: 6 | AV5: 7 | AW5: 8 | AX5: 9
A6: Run cursor | C6: Type answer (with symbol codes) below: | M6: Code: | O6: 1 | P6: 2 | Q6: 3 | R6: 4 | S6: 5 | T6: 6 | U6: 7 | V6: 8 | W6: 9 | X6: 1 | Y6: 2 | Z6: 3 | AA6: 4 | AB6: 5 | AC6: 6 | AD6: 7 | AE6: 8 | AF6: 9 | AG6: 1 | AH6: 2 | AI6: 3 | AJ6: 4 | AK6: 5 | AL6: 6 | AM6: 7 | AN6: 8 | AO6: 9 | AP6: 1 | AQ6: 2 | AR6: 3 | AS6: 4 | AT6: 5 | AU6: 6 | AV6: ~ | AW6: ~ | AX6: ~
A7: over cell. | B7: Translate this: | D7: Correct answer: | L7: Answer row | M7: Step trans: | N7: =C7 -> 0 | O7: =IF(ISERR(FIND(O6,N7)),N7,LEFT(N7,FIND(O6,N7)-1)&O5&MID(N7,FIND(O6,N7)+1,LEN(N7))) -> 0 | P7: 0 | Q7: 0 | R7: 0 | S7: 0 | T7: 0 | U7: 0 | V7: 0 | W7: 0 | X7: 0 | Y7: 0 | Z7: 0 | AA7: 0 | AB7: 0 | AC7: 0 | AD7: 0 | AE7: 0 | AF7: 0 | AG7: 0 | AH7: 0 | AI7: 0 | AJ7: 0 | AK7: 0 | AL7: 0 | AM7: 0 | AN7: 0 | AO7: 0 | AP7: 0 | AQ7: 0 | AR7: 0 | AS7: 0 | AT7: 0 | AU7: 0 | AV7: =IF(ISERR(FIND(AV6,AU7)),AU7,LEFT(AU7,FIND(AV6,AU7)-1)&AV5&MID(AU7,FIND(AV6,AU7)+1,LEN(AU7))) -> 0 | AW7: =IF(ISERR(FIND(AW6,AV7)),AV7,LEFT(AV7,FIND(AW6,AV7)-1)&AW5&MID(AV7,FIND(AW6,AV7)+1,LEN(AV7))) -> 0 | AX7: =IF(ISERR(FIND(AX6,AW7)),AW7,LEFT(AW7,FIND(AX6,AW7)-1)&AX5&MID(AW7,FIND(AX6,AW7)+1,LEN(AW7))) -> 0
A8: Help Topics: | B8: =VLOOKUP(IF(C29>B34,1,C29),CHOOSE(P18,words,words1,words2,words3,words4),IF(C20=M4,2,3)) -> lamb | C8: =N8 ->  | D8: =IF(ISBLANK(C7),"",VLOOKUP(IF(C29>B34,1,C29),CHOOSE(P18,words,words1,words2,words3,words4),IF(C20=M4,3,2))) ->  | M8: W/char: | N8: =IF(N7=0,"",IF(AX7=0,"",AX7)) ->  | R8: Vocabulary
A9: Start_up | B9: =IF(ISBLANK(VLOOKUP(C29,CHOOSE(P18,words,words1,words2,words3,words4),IF(C20=M4,4,5))),"",VLOOKUP(C29,CHOOSE(P18,words,words1,words2,words3,words4),IF(C20=M4,4,5))) -> the | C9: =IF(C8=" ----","Ready!",IF(C8="","Ready!",IF(D8=C8," "&B59,C59))) -> Ready! | D9: =IF(ISBLANK(C7),"",IF(ISBLANK(VLOOKUP(C29,CHOOSE(P18,words,words1,words2,words3,words4),IF(C20=M4,5,4))),"",VLOOKUP(C29,CHOOSE(P18,words,words1,words2,words3,words4),IF(C20=M4,5,4)))) ->  | L9: Ctrl-z row | M9: Step trans: | N9: r5fuger | O9: =IF(ISERR(FIND(O6,N9)),N9,LEFT(N9,FIND(O6,N9)-1)&O5&MID(N9,FIND(O6,N9)+1,LEN(N9))) -> r5fuger | P9: =IF(ISERR(FIND(P6,O9)),O9,LEFT(O9,FIND(P6,O9)-1)&P5&MID(O9,FIND(P6,O9)+1,LEN(O9))) -> r5fuger | Q9: r5fuger | R9: r5fuger | S9: rùfuger | T9: rùfuger | U9: rùfuger | V9: rùfuger | W9: rùfuger | X9: rùfuger | Y9: rùfuger | Z9: rùfuger | AA9: rùfuger | AB9: rùfuger | AC9: rùfuger | AD9: rùfuger | AE9: rùfuger | AF9: rùfuger | AG9: rùfuger | AH9: rùfuger | AI9: rùfuger | AJ9: rùfuger | AK9: rùfuger | AL9: rùfuger | AM9: rùfuger | AN9: rùfuger | AO9: rùfuger | AP9: rùfuger | AQ9: rùfuger | AR9: rùfuger | AS9: rùfuger | AT9: rùfuger | AU9: rùfuger | AV9: rùfuger | AW9: rùfuger | AX9: rùfuger
A10: Use | B10: Hint ^ | C10: ="Current word row: "&TEXT(C29,M1) -> Current word row: 2 | D10: Added info ^ . | M10: W/char: | N10: =IF(N9=0,"",IF(AX9=0,"",AX9)) -> rùfuger
A11: Change_List | B11: Challenges | C11: =IF(B12="","",IF(B12=0,"Score: " &0,"Score: "&ROUND(B14*100/B12,2)&"%")) -> Score: 0 | D11: Frequency Weighting Incremement (0% starting point, -100% = never) | G11: =10+INDIRECT("'"&B32&"'!R"&C29+6&"C6",FALSE)*10 -> 10 | L11: = | M11: ; | Q11: = | R11: ; | U11: Target Names
A12: Change_Range | B12: 0 | C12: =B32 -> Vocabulary | D12: =(G12)*0.1-1 -> 0 | G12: 10 | M12: =O5&$L$11&O6&$M$11&P5&$L$11&P6&$M$11&Q5&$L$11&Q6&$M$11&R5&$L$11&R6&$M$11&S5&$L$11&S6 -> à = 1; è = 2; ì = 3; ò = 4; ù = 5 | Q12: =T5&$Q$11&T6&$R$11&U5&$Q$11&U6&$R$11&V5&$Q$11&V6&$R$11&W5&$Q$11&W6 -> 6 = 6; 7 = 7; 8 = 8; 9 = 9 | U12: English | V12: Col. B heading
A13: Change_Target | B13: First try successes | C13: Scoring is: | D13: © Nathan Dickmeyer, 2023 | U13: Italian | V13: Col. C heading
A14: Correct | B14: 0 | C14: On | G14: Tries
C15: 0 | G15: 0
A16: Add_Words | G16: ="1=Correct" -> 1=Correct
A17: Score | G17: =IF( C7="", 0,IF(D8=C8,1,0)) -> 0
A18: Weights | B18: ="Current list tab: "&B32 -> Current list tab: Vocabulary | M18: words | N18: 1 | P18: =IF(ISERROR(MATCH(B32,sets,0)),1,MATCH(B32,sets,0)) -> 1
A19: Symbol_Codes | B19: ="Current range from: "&Select!E7 -> Current range from: 0 | C19: Now guessing: | G19: Vocabulary | M19: words1 | N19: 2
A20: Insults | B20: =" to: "&Select!E8&" ("&INDIRECT("'"&B32&"'!R6C2",FALSE)&" max.)" -> to: 25 (531 max.) | C20: =Select!P8 -> Italian | G20: Phrases | M20: words2 | N20: 3
A21: Protection | B21: This work is licensed under the Creative Commons Attribution 2.5 License. To view a copy of this license, visit: | D21: http://creativecommons.org/licenses/by/2.5/ | G21: Set A | M21: words3 | N21: 4
B22: or send a letter to Creative Commons, 543 Howard Street, 5th Floor, San Francisco, California, 94105, USA | D22: Updated: 5/16/23 | G22: Set B | M22: words4 | N22: 5
G23: Set C | M23: words5 | N23: 6
B28: Random number | C28: =VLOOKUP(RAND(),CHOOSE(P18,probs,Probs1,probs2,probs3,probs4),2)+1 -> 21
B29: =B32 -> Vocabulary | C29: 2
B32: =Select!R8 -> Vocabulary
B33: Tab name, cleaned
B34: =INDIRECT("'"&B32&"'!R6C2",FALSE) -> 531
B35: Total in current tab
B58: Total number: | C58: 44
B59: =VLOOKUP(INT(RAND()*C58+1),goodBad,2) -> Lucky! | C59: =VLOOKUP(INT(RAND()*C58+1),goodBad,3) -> Whoops!
A60: 1 | B60: Cool! | C60: Not Smart! | D60: 1
A61: =A60+1 -> 2 | B61: Outstanding! | C61: Dumb! | D61: =D60+1 -> 2
A62: =A61+1 -> 3 | B62: Marvelous! | C62: Incorrect! | D62: =D61+1 -> 3
A63: 4 | B63: Groovy! | C63: Wrong! | D63: 4
A64: 5 | B64: Gnarly! | C64: Wrong! Wrong! | D64: 5
A65: 6 | B65: Brilliant! | C65: Wrong! Wrong! Wrong! | D65: 6
A66: 7 | B66: Bodacious! | C66: Try Again! | D66: 7
A67: 8 | B67: Stupendous! | C67: Whoops! | D67: 8
A68: 9 | B68: Incredible! | C68: You can do better! | D68: 9
A69: 10 | B69: Particularly Fine! | C69: Bad News! | D69: 10
A70: 11 | B70: Nice Job! | C70: Uhhhh... No! | D70: 11
A71: 12 | B71: Good Job! | C71: False! | D71: 12
A72: 13 | B72: Fine Work! | C72: Lies! All Lies! | D72: 13
A73: 14 | B73: You've done it! | C73: Not Good! | D73: 14
A74: 15 | B74: Mastermind! | C74: Not Correct! | D74: 15
A75: 16 | B75: Bent it like Becham! | C75: Not Right! | D75: 16
A76: 17 | B76: Totally! | C76: Next time, ask someone! | D76: 17
A77: 18 | B77: Totally Cool! | C77: Not even close! | D77: 18
A78: 19 | B78: Totally Like Cool! | C78: That stinks! | D78: 19
A79: 20 | B79: Undeniably Brilliant! | C79: Terrible! | D79: 20
A80: 21 | B80: Kick-ass! | C80: Give up! | D80: 21
A81: 22 | B81: You! You! You! | C81: Have mercy! | D81: 22
A82: 23 | B82: Home Run! | C82: Couch potatoe! | D82: 23
A83: 24 | B83: Spectacular! | C83: Not Smart! | D83: 24
A84: 25 | B84: Awesome! | C84: Hopeless! | D84: 25
A85: 26 | B85: Totally Awesome! | C85: Get a Brain! | D85: 26
A86: 27 | B86: Your Ma Loves You! | C86: Listen buddy... | D86: 27
A87: 28 | B87: Sophisticated! | C87: Duuuuhhh! | D87: 28
A88: 29 | B88: Like...Wow! | C88: Dumb! | D88: 29
A89: 30 | B89: Smashing! | C89: Mentally Unfit! | D89: 30
A90: 31 | B90: Killer! | C90: Bad Hands! | D90: 31
A91: 32 | B91: Lucky! | C91: Sick! | D91: 32
A92: 33 | B92: Great! | C92: Lacking Intelligence! | D92: 33
A93: 34 | B93: Excellent! | C93: Slipping! | D93: 34
A94: 35 | B94: Unbelievable! | C94: Tripped up! | D94: 35
A95: 36 | B95: Wicked! | C95: Bummer! | D95: 36
A96: 37 | B96: Awsome Wicked! | C96: Prehistoric! | D96: 37
A97: 38 | B97: Like Tough Wicked! | C97: Adults Only, Please! | D97: 38
A98: 39 | B98: Monster! | C98: Not you again!!! | D98: 39
A99: 40 | B99: Smokin'! | C99: Awful! Awful! Awful! | D99: 40
A100: 41 | B100: You Is Bad! | C100: Too bad! | D100: 41
A101: 42 | B101: Over The Top! | C101: So Sorry! | D101: 42
A102: 43 | B102: Wonderful! | C102: Yech! | D102: 43
A103: 44 | B103: Bangin'! | C103: You trippin'? | D103: 44

Sheet Select
D1: RESET TARGET, RANGE OR RESET WORD/PHRASE SET
D5: Enter range below | P5: =Drill!M3 -> English
D7: Start at: | E7: 0 | G7: Current active tab | P7: =Drill!M4 -> Italian
D8: End at: | E8: 25 | G8: =Drill!B32 -> Vocabulary | O8: Active= | P8: Italian | R8: Vocabulary
E9: ="Total is now: "&INDIRECT("'"&Drill!B32&"'!R6C2",FALSE) -> Total is now: 531
C10: Click on tab name below for word or phrase set desired.
F11: Total in set | I11: TARGET
E12: =Drill!G19 -> Vocabulary | F12: =Vocabulary!B6 -> 531 | I12: =" Guess "&Drill!M3&" or "&Drill!M4&"?" -> Guess English or Italian?
E13: =Drill!G20 -> Phrases | F13: =Phrases!B6 -> 3 | I13: =P5 -> English
E14: =Drill!G21 -> Set A | F14: ='Set A'!B6 -> 5 | I14: =P7 -> Italian
E15: =Drill!G22 -> Set B | F15: ='Set B'!B6 -> 5 | I15: ="Current = "&P8 -> Current = Italian
E16: =Drill!G23 -> Set C | F16: ='Set C'!B6 -> 5
C19: ="Reset all (tab: "&Drill!B32&")" -> Reset all (tab: Vocabulary)
C20: Frequency Weighting Incremements
C21: To equal weights (0%)

Sheet Vocabulary
A4: 2999 | B4: =Drill!M12 -> à = 1; è = 2; ì = 3; ò = 4; ù = 5 | C4: =Drill!Q12 -> 6 = 6; 7 = 7; 8 = 8; 9 = 9 | H4: Range Sum
A5: =IF(ISNUMBER(Select!E7),IF(Select!E7>1,IF(Select!E7>A4,1,IF(Select!E8<=Select!E7,1,Select!E7)),1),1) -> 1 | B5: =Drill!M3 -> English | C5: =Drill!M4 -> Italian | D5: =Drill!M3&" Hints" -> English Hints | E5: =Drill!M4&" Hints" -> Italian Hints | F5: Delta | G5: Range Cum. | H5: =SUM(OFFSET(Adjusts,A5-1,0,A6-A5+1,1))+A6-A5+1 -> 25 | M5: =Drill!M5 -> Character: | N5: =Drill!N5 -> 0 | O5: =Drill!O5 -> à | P5: =Drill!P5 -> è | Q5: =Drill!Q5 -> ì | R5: =Drill!R5 -> ò | S5: =Drill!S5 -> ù | T5: =Drill!T5 -> 6 | U5: =Drill!U5 -> 7 | V5: =Drill!V5 -> 8 | W5: =Drill!W5 -> 9 | X5: =Drill!X5 -> à | Y5: =Drill!Y5 -> è | Z5: =Drill!Z5 -> ì | AA5: =Drill!AA5 -> ò | AB5: =Drill!AB5 -> ù | AC5: =Drill!AC5 -> 6 | AD5: =Drill!AD5 -> 7 | AE5: =Drill!AE5 -> 8 | AF5: =Drill!AF5 -> 9 | AG5: =Drill!AG5 -> à | AH5: =Drill!AH5 -> è | AI5: =Drill!AI5 -> ì | AJ5: =Drill!AJ5 -> ò | AK5: =Drill!AK5 -> ù | AL5: =Drill!AL5 -> 6 | AM5: =Drill!AM5 -> 7 | AN5: =Drill!AN5 -> 8 | AO5: =Drill!AO5 -> 9 | AP5: =Drill!AP5 -> à | AQ5: =Drill!AQ5 -> è | AR5: =Drill!AR5 -> í | AS5: =Drill!AS5 -> ò | AT5: =Drill!AT5 -> ù | AU5: =Drill!AU5 -> 6 | AV5: =Drill!AV5 -> 7 | AW5: =Drill!AW5 -> 8 | AX5: =Drill!AX5 -> 9
A6: =IF(ISNUMBER(Select!E8),IF(Select!E8>A4,B6,IF(Select!E8<=A5,B6,IF(Select!E8>B6,B6,Select!E8))),B6) -> 25 | B6: =A4-COUNTBLANK(B7:B3005) -> 531 | F6: Add to 100% | G6: 0 | H6: 0 | M6: =Drill!M6 -> Code: | N6: =Drill!N6 -> 0 | O6: =Drill!O6 -> 1 | P6: =Drill!P6 -> 2 | Q6: =Drill!Q6 -> 3 | R6: =Drill!R6 -> 4 | S6: =Drill!S6 -> 5 | T6: =Drill!T6 -> 6 | U6: =Drill!U6 -> 7 | V6: =Drill!V6 -> 8 | W6: =Drill!W6 -> 9 | X6: =Drill!X6 -> 1 | Y6: =Drill!Y6 -> 2 | Z6: =Drill!Z6 -> 3 | AA6: =Drill!AA6 -> 4 | AB6: =Drill!AB6 -> 5 | AC6: =Drill!AC6 -> 6 | AD6: =Drill!AD6 -> 7 | AE6: =Drill!AE6 -> 8 | AF6: =Drill!AF6 -> 9 | AG6: =Drill!AG6 -> 1 | AH6: =Drill!AH6 -> 2 | AI6: =Drill!AI6 -> 3 | AJ6: =Drill!AJ6 -> 4 | AK6: =Drill!AK6 -> 5 | AL6: =Drill!AL6 -> 6 | AM6: =Drill!AM6 -> 7 | AN6: =Drill!AN6 -> 8 | AO6: =Drill!AO6 -> 9 | AP6: =Drill!AP6 -> 1 | AQ6: =Drill!AQ6 -> 2 | AR6: =Drill!AR6 -> 3 | AS6: =Drill!AS6 -> 4 | AT6: =Drill!AT6 -> 5 | AU6: =Drill!AU6 -> 6 | AV6: =Drill!AV6 -> ~ | AW6: =Drill!AW6 -> ~ | AX6: =Drill!AX6 -> ~
A7: =1 -> 1 | B7: cold cuts | C7: gli affettati | D7: the | F7: 0 | G7: =IF(OR($A$5>A7,A7>$A$6),0,(F7+1)/$H$5+G6) -> 0.04 | H7: =A7 -> 1
A8: =1+A7 -> 2 | B8: lamb | C8: l'agnello | D8: the | F8: 0 | G8: =IF(OR($A$5>A8,A8>$A$6),0,(F8+1)/$H$5+G7) -> 0.08 | H8: =A8 -> 2
A9: =1+A8 -> 3 | B9: duck | C9: l'anatra | D9: the | F9: 0 | G9: =IF(OR($A$5>A9,A9>$A$6),0,(F9+1)/$H$5+G8) -> 0.12 | H9: 3 | M9: =Drill!M9 -> Step trans: | N9: aa1 | O9: =IF(ISERR(FIND(O6,N9)),N9,LEFT(N9,FIND(O6,N9)-1)&O5&MID(N9,FIND(O6,N9)+1,LEN(N9))) -> aaà | P9: =IF(ISERR(FIND(P6,O9)),O9,LEFT(O9,FIND(P6,O9)-1)&P5&MID(O9,FIND(P6,O9)+1,LEN(O9))) -> aaà | Q9: aaà | R9: aaà | S9: aaà | T9: aaà | U9: aaà | V9: aaà | W9: aaà | X9: aaà | Y9: aaà | Z9: aaà | AA9: aaà | AB9: aaà | AC9: aaà | AD9: aaà | AE9: aaà | AF9: aaà | AG9: aaà | AH9: aaà | AI9: aaà | AJ9: aaà | AK9: aaà | AL9: aaà | AM9: aaà | AN9: aaà | AO9: aaà | AP9: aaà | AQ9: aaà | AR9: aaà | AS9: aaà | AT9: aaà | AU9: aaà | AV9: aaà | AW9: aaà | AX9: aaà
A10: 4 | B10: lobster | C10: l'aragosta | D10: l'… | F10: 0 | G10: =IF($A$5>A10,0,IF(A10>$A$6,1,(F10+1)/$H$5+G9)) -> 0.16 | H10: 4 | M10: =Drill!M10 -> W/char: | N10: =IF(N9=0,"",IF(AX9=0,"",AX9)) -> aaà
A11: 5 | B11: orange | C11: l'arancia | D11: fruit the | F11: 0 | G11: =IF($A$5>A11,0,IF(A11>$A$6,1,(F11+1)/$H$5+G10)) -> 0.2 | H11: 5
A12: 6 | B12: apricot | C12: l'albicocca | D12: the | F12: 0 | G12: 0.24 | H12: 6
A13: 7 | B13: broccoli | C13: i broccoli | D13: the | F13: 0 | G13: 0.28 | H13: 7
A14: 8 | B14: meat | C14: la carne | D14: the | F14: 0 | G14: 0.32 | H14: 8
A15: 9 | B15: carrot | C15: la carota | D15: the | F15: 0 | G15: 0.36 | H15: 9
A16: 10 | B16: cauliflower | C16: il cavolfiore | D16: the | F16: 0 | G16: 0.4 | H16: 10
A17: 11 | B17: cabbage | C17: il cavolo | D17: the | F17: 0 | G17: 0.44 | H17: 11
A18: 12 | B18: dinner | C18: la cena | D18: the | F18: 0 | G18: 0.48 | H18: 12
A19: 13 | B19: cucumber | C19: il cetriolo | D19: the | F19: 0 | G19: 0.52 | H19: 13
A20: 14 | B20: food | C20: il cibo | D20: the | F20: 0 | G20: 0.56 | H20: 14
A21: 15 | B21: cherry | C21: la ciliegia | D21: the | F21: 0 | G21: 0.6 | H21: 15
A22: 16 | B22: onion | C22: la cipolla | D22: the | F22: 0 | G22: 0.64 | H22: 16
A23: 17 | B23: breakfast | C23: la colazione | D23: the | F23: 0 | G23: 0.68 | H23: 17
A24: 18 | B24: mussels | C24: le cozze | D24: the | F24: 0 | G24: 0.72 | H24: 18
A25: 19 | B25: string beans | C25: i fagiolini | D25: the | F25: 0 | G25: 0.76 | H25: 19
A26: 20 | B26: bean | C26: il fagiolo | D26: the | F26: 0 | G26: 0.8 | H26: 20
A27: 21 | B27: fig | C27: il fico | D27: the | F27: 0 | G27: 0.84 | H27: 21
A28: 22 | B28: strawberry | C28: la fragola | D28: the | F28: 0 | G28: 0.88 | H28: 22
A29: 23 | B29: seafood | C29: i frutti di mare | D29: the | F29: 0 | G29: 0.92 | H29: 23
A30: 24 | B30: mushroom | C30: il fungo | D30: the | F30: 0 | G30: 0.96 | H30: 24
A31: 25 | B31: shrimp | C31: il gambero | D31: the | F31: 0 | G31: 1 | H31: 25
A32: 26 | B32: lemon | C32: il limone | D32: the | F32: 0 | G32: 1 | H32: 26
A33: 27 | B33: pork | C33: il maiale | D33: the | F33: 0 | G33: 1 | H33: 27
A34: 28 | B34: apple | C34: la mela | D34: the | F34: 0 | G34: 1 | H34: 28
A35: 29 | B35: eggplant | C35: la melanzana | D35: the | F35: 0 | G35: 1 | H35: 29
A36: 30 | B36: blueberry | C36: il mirtillo | D36: the | F36: 0 | G36: 1 | H36: 30
A37: 31 | B37: olive | C37: l'oliva | D37: the | F37: 0 | G37: 1 | H37: 31
A38: 32 | B38: meal | C38: il pasto | D38: the | F38: 0 | G38: 1 | H38: 32
A39: 33 | B39: potato | C39: la patata | D39: the | F39: 0 | G39: 1 | H39: 33
A40: 34 | B40: pear | C40: la pera | D40: the | F40: 0 | G40: 1 | H40: 34
A41: 35 | B41: peach | C41: la pesca | D41: the | F41: 0 | G41: 1 | H41: 35
A42: 36 | B42: fish | C42: il pesce | D42: the | F42: 0 | G42: 1 | H42: 36
A43: 37 | B43: pea | C43: il pisello | D43: the | F43: 0 | G43: 1 | H43: 37
A44: 38 | B44: chicken | C44: il pollo | D44: the | F44: 0 | G44: 1 | H44: 38
A45: 39 | B45: tomato | C45: il pomodoro | D45: the | F45: 0 | G45: 1 | H45: 39
A46: 40 | B46: grapefruit | C46: il pompelmo | D46: the | F46: 0 | G46: 1 | H46: 40
A47: 41 | B47: lunch | C47: il pranzo | D47: the | F47: 0 | G47: 1 | H47: 41
A48: 42 | B48: ham | C48: il prosciutto | D48: the | F48: 0 | G48: 1 | H48: 42
A49: 43 | B49: celery | C49: il sedano | D49: the | F49: 0 | G49: 1 | H49: 43
A50: 44 | B50: turkey | C50: il tacchino | D50: the | F50: 0 | G50: 1 | H50: 44
A51: 45 | B51: tuna | C51: il tonno | D51: the | F51: 0 | G51: 1 | H51: 45
A52: 46 | B52: trout | C52: la trota | D52: the | F52: 0 | G52: 1 | H52: 46
A53: 47 | B53: grapes | C53: l'uva | D53: the | F53: 0 | G53: 1 | H53: 47
A54: 48 | B54: vegetables | C54: la verdura | D54: the | F54: 0 | G54: 1 | H54: 48
A55: 49 | B55: veal | C55: il vitello | D55: the | F55: 0 | G55: 1 | H55: 49
A56: 50 | B56: clam | C56: la vongola | D56: the | F56: 0 | G56: 1 | H56: 50
A57: 51 | B57: oysters | C57: ostriche | F57: 0 | G57: 1 | H57: 51
A58: 52 | B58: savory | C58: sapida | F58: 0 | G58: 1 | H58: 52
A59: 53 | B59: each | C59: CAD | F59: 0 | G59: 1 | H59: 53
A60: 54 | B60: unique flavors | C60: sapori unici | F60: 0 | G60: 1 | H60: 54
A61: 55 | B61: sea urchins | C61: ricci di mare | F61: 0 | G61: 1 | H61: 55
A62: 56 | B62: sea truffles | C62: tartufi di mare | D62: a seaweed | F62: 0 | G62: 1 | H62: 56
A63: 57 | B63: anchovies | C63: acciughe | F63: 0 | G63: 1 | H63: 57
A64: 58 | B64: butter | C64: burro | F64: 0 | G64: 1 | H64: 58
A65: 59 | B65: grilled | C65: grigliati | F65: 0 | G65: 1 | H65: 59
A66: 60 | B66: artichokes | C66: carciofi | F66: 0 | G66: 1 | H66: 60
A67: 61 | B67: prawns | C67: mazzoncolle | D67: ma… | F67: 0 | G67: 1 | H67: 61
A68: 62 | B68: grouper | C68: cernia | F68: 0 | G68: 1 | H68: 62
A69: 63 | B69: cuttlefish | C69: seppia | F69: 0 | G69: 1 | H69: 63
A70: 64 | B70: cheese | C70: cacio | F70: 0 | G70: 1 | H70: 64
A71: 65 | B71: matrix | C71: matriciana | F71: 0 | G71: 1 | H71: 65
A72: 66 | B72: tomato and bacon | C72: amatriciana | F72: 0 | G72: 1 | H72: =A72 -> 66
A73: =1+A72 -> 67 | B73: crock | C73: coccio | F73: 0 | G73: 1 | H73: 67
A74: 68 | B74: crushed with capers | C74: schiacciate ai capperi | F74: 0 | G74: 1 | H74: 68
A75: 69 | B75: monkfish | C75: coda di rospo | D75: (tail of toad) | F75: 0 | G75: =IF($A$5>A75,0,IF(A75>$A$6,1,(F75+1)/$H$5+G74)) -> 1 | H75: 69
A76: 70 | B76: scalded | C76: scottato | F76: 0 | G76: 1 | H76: 70
A77: 71 | B77: basket | C77: cestino | F77: 0 | G77: 1 | H77: 71
A78: 72 | B78: queen | C78: regina | F78: 0 | G78: 1 | H78: 72
A79: 73 | B79: prawns | C79: gamberi | D79: ga… | F79: 0 | G79: 1 | H79: 73
A80: 74 | B80: sour sauce | C80: salsa acida | F80: 0 | G80: 1 | H80: 74
A81: 75 | B81: grain mustard | C81: senape in grani | F81: 0 | G81: 1 | H81: 75
A82: 76 | B82: acrid veggie | C82: agretto | F82: 0 | G82: 1 | H82: 76
A83: 77 | B83: sea bass | C83: spigola | F83: 0 | G83: 1 | H83: 77
A84: 78 | B84: sheets | C84: sfoglie | D84: puff pastry | F84: 0 | G84: 1 | H84: 78
A85: 79 | B85: amberjack | C85: ricciola | D85: fishy fish | F85: 0 | G85: 1 | H85: 79
A86: 80 | B86: lobster | C86: astice | D86: ast… | F86: 0 | G86: 1 | H86: 80
A87: 81 | B87: sour | C87: all'agro | F87: 0 | G87: 1 | H87: 81
A88: 82 | B88: ginger | C88: zenzero | F88: 0 | G88: 1 | H88: 82
A89: 83 | B89: caviar | C89: caviale | F89: 0 | G89: 1 | H89: 83
A90: 84 | B90: curly | C90: ricci | F90: 0 | G90: 1 | H90: 84
A91: 85 | B91: musky octopus | C91: polpo muschiato | F91: 0 | G91: 1 | H91: 85
A92: 86 | B92: plated | C92: piastrato | F92: 0 | G92: 1 | H92: 86
A93: 87 | B93: beet | C93: barbabietola | F93: 0 | G93: 1 | H93: 87
A94: 88 | B94: pin | C94: spillo | F94: 0 | G94: 1 | H94: 88
A95: 89 | B95: bread crumbs | C95: mollica tostaia | F95: 0 | G95: 1 | H95: 89
A96: 90 | B96: crunchy | C96: croccanti | F96: 0 | G96: 1 | H96: 90
A97: 91 | B97: stew | C97: guazzetto | F97: 0 | G97: 1 | H97: 91
A98: 92 | B98: peas | C98: piselli | F98: 0 | G98: 1 | H98: 92
A99: 93 | B99: whole | C99: intero | F99: 0 | G99: 1 | H99: 93
A100: 94 | B100: side dishes | C100: contorni | F100: 0 | G100: 1 | H100: 94
A101: 95 | B101: cooked | C101: cotte | F101: 0 | G101: 1 | H101: 95
A102: 96 | B102: sauteed | C102: saltate | F102: 0 | G102: 1 | H102: 96
A103: 97 | B103: hat of hair | C103: cappello di capelli | F103: 0 | G103: 1 | H103: 97
A104: 98 | B104: brochure | C104: depliant | F104: 0 | G104: 1 | H104: 98
A105: 99 | B105: here you are | C105: ecco | F105: 0 | G105: 1 | H105: 99
A106: 100 | B106: map | C106: la cartina | D106: the | F106: 0 | G106: 1 | H106: 100
A107: 101 | B107: we need | C107: abbramo bisogno | F107: 0 | G107: 1 | H107: 101
A108: 102 | B108: behind | C108: dietro | F108: 0 | G108: 1 | H108: 102
A109: 103 | B109: tickets | C109: biglietti | F109: 0 | G109: 1 | H109: 103
A110: 104 | B110: next to the | C110: accanto alla | D110: f. object | F110: 0 | G110: 1 | H110: 104
A111: 105 | B111: lost | C111: perso | F111: 0 | G111: 1 | H111: 105
A112: 106 | B112: there | C112: lì | F112: 0 | G112: 1 | H112: 106
A113: 107 | B113: here | C113: qui | F113: 0 | G113: 1 | H113: 107
A114: 108 | B114: right | C114: destra | D114: direction | F114: 0 | G114: 1 | H114: 108
A115: 109 | B115: go straight | C115: vada dritto | F115: 0 | G115: 1 | H115: 109
A116: 110 | B116: then | C116: poi | F116: 0 | G116: 1 | H116: 110
A117: 111 | B117: third | C117: terza | D117: f. | F117: 0 | G117: 1 | H117: 111
A118: 112 | B118: can you | C118: può | F118: 0 | G118: 1 | H118: 112
A119: 113 | B119: afternoon | C119: pomeriggio | F119: 0 | G119: 1 | H119: 113
A120: 114 | B120: evening | C120: sera | F120: 0 | G120: 1 | H120: 114
A121: 115 | B121: come down | C121: scenda | F121: 0 | G121: 1 | H121: 115
A122: 116 | B122: size | C122: taglia | F122: 0 | G122: 1 | H122: 116
A123: 117 | B123: which | C123: quale | F123: 0 | G123: 1 | H123: 117
A124: 118 | B124: you like | C124: ti piace | F124: 0 | G124: 1 | H124: 118
A125: 119 | B125: moreover | C125: di più | F125: 0 | G125: 1 | H125: 119
A126: 120 | B126: more | C126: più | D126: most, plus | F126: 0 | G126: 1 | H126: 120
A127: 121 | B127: sixty | C127: sessanta | F127: 0 | G127: 1 | H127: 121
A128: 122 | B128: on sale | C128: in saldo | F128: 0 | G128: 1 | H128: 122
A129: 123 | B129: eighty | C129: ottanta | F129: 0 | G129: 1 | H129: 123
A130: 124 | B130: inside | C130: dentro | F130: 0 | G130: 1 | H130: 124
A131: 125 | B131: outside | C131: fuori | F131: 0 | G131: 1 | H131: 125
A132: 126 | B132: after | C132: dopo | F132: 0 | G132: 1 | H132: 126
A133: 127 | B133: sweater | C133: una maglia | D133: a | F133: 0 | G133: 1 | H133: 127
A134: 128 | B134: belt | C134: una cintura | D134: a | F134: 0 | G134: 1 | H134: 128
A135: 129 | B135: suit | C135: un abito | D135: a | F135: 0 | G135: 1 | H135: 129
A136: 130 | B136: socks | C136: dei calzini | D136: some | F136: 0 | G136: 1 | H136: =A136 -> 130
A137: =1+A136 -> 131 | B137: a t-shirt | C137: una maglietta | F137: 0 | G137: 1 | H137: 131
A138: 132 | B138: a dress | C138: un vestito | F138: 0 | G138: 1 | H138: 132
A139: 133 | B139: shoes | C139: le scarpe | D139: the | F139: 0 | G139: =IF($A$5>A139,0,IF(A139>$A$6,1,(F139+1)/$H$5+G138)) -> 1 | H139: 133
A140: 134 | B140: orange | C140: arancione | D140: color | F140: 0 | G140: 1 | H140: 134
A141: 135 | B141: orange | C141: l'arancia | D141: fruit the | F141: 0 | G141: 1 | H141: 135
A142: 136 | B142: overcoat | C142: il cappotto | D142: the | F142: 0 | G142: 1 | H142: 136
A143: 137 | B143: brown | C143: castani | F143: 0 | G143: 1 | H143: 137
A144: 138 | B144: blue | C144: azzurra | F144: 0 | G144: 1 | H144: 138
A145: 139 | B145: cold | C145: freddo | F145: 0 | G145: 1 | H145: 139
A146: 140 | B146: hot | C146: caldo | F146: 0 | G146: 1 | H146: 140
A147: 141 | B147: hungry | C147: fame | F147: 0 | G147: 1 | H147: 141
A148: 142 | B148: thirsty | C148: sete | F148: 0 | G148: 1 | H148: 142
A149: 143 | B149: tired | C149: stanco | F149: 0 | G149: 1 | H149: 143
A150: 144 | B150: sick | C150: malata | F150: 0 | G150: 1 | H150: 144
A151: 145 | B151: fever | C151: febbre | F151: 0 | G151: 1 | H151: 145
A152: 146 | B152: ear | C152: l'orecchio | D152: the | F152: 0 | G152: 1 | H152: 146
A153: 147 | B153: head | C153: testa | F153: 0 | G153: 1 | H153: 147
A154: 148 | B154: belly | C154: la pancia | D154: the | F154: 0 | G154: 1 | H154: 148
A155: 149 | B155: eye | C155: un occhio | D155: a | F155: 0 | G155: 1 | H155: 149
A156: 150 | B156: swollen | C156: gonfio | F156: 0 | G156: 1 | H156: 150
A157: 151 | B157: rash | C157: un eritema | D157: a | F157: 0 | G157: 1 | H157: 151
A158: 152 | B158: itches | C158: prude | F158: 0 | G158: 1 | H158: 152
A159: 153 | B159: cough | C159: tossito | F159: 0 | G159: 1 | H159: 153
A160: 154 | B160: sneeze | C160: starnutito | F160: 0 | G160: 1 | H160: 154
A161: 155 | B161: how long | C161: da quanto tempo | F161: 0 | G161: 1 | H161: 155
A162: 156 | B162: plant | C162: la planta | D162: the | F162: 0 | G162: 1 | H162: 156
A163: 157 | B163: two times | C163: due volte | F163: 0 | G163: 1 | H163: 157
A164: 158 | B164: help | C164: di aiuto | F164: 0 | G164: 1 | H164: 158
A165: 159 | B165: to swim | C165: nuotare | F165: 0 | G165: 1 | H165: 159
A166: 160 | B166: is bleeding | C166: sta sanguinando | D166: he | F166: 0 | G166: 1 | H166: 160
A167: 161 | B167: flame | C167: fiamme | F167: 0 | G167: 1 | H167: 161
A168: 162 | B168: wood | C168: legno | F168: 0 | G168: 1 | H168: 162
A169: 163 | B169: clothes | C169: abiti | D169: a… | F169: 0 | G169: 1 | H169: 163
A170: 164 | B170: eyes | C170: occhi | F170: 0 | G170: 1 | H170: 164
A171: 165 | B171: but | C171: ma | F171: 0 | G171: 1 | H171: 165
A172: 166 | B172: infant | C172: neonato | F172: 0 | G172: 1 | H172: 166
A173: 167 | B173: week | C173: una settimana | D173: a | F173: 0 | G173: 1 | H173: 167
A174: 168 | B174: month | C174: un mese | D174: a | F174: 0 | G174: 1 | H174: 168
A175: 169 | B175: today | C175: oggi | F175: 0 | G175: 1 | H175: 169
A176: 170 | B176: Friday | C176: venerdi | F176: 0 | G176: 1 | H176: 170
A177: 171 | B177: Saturday | C177: sabato | F177: 0 | G177: 1 | H177: 171
A178: 172 | B178: Sunday | C178: domenica | F178: 0 | G178: 1 | H178: 172
A179: 173 | B179: Tuesday | C179: martedi | F179: 0 | G179: 1 | H179: 173
A180: 174 | B180: Monday | C180: lunedi | F180: 0 | G180: 1 | H180: 174
A181: 175 | B181: Wednesday | C181: mercoledi | F181: 0 | G181: 1 | H181: 175
A182: 176 | B182: Thursday | C182: giovedi | F182: 0 | G182: 1 | H182: 176
A183: 177 | B183: guests | C183: ospiti | F183: 0 | G183: 1 | H183: 177
A184: 178 | B184: inn | C184: albergo | F184: 0 | G184: 1 | H184: 178
A185: 179 | B185: smell | C185: odora | F185: 0 | G185: 1 | H185: 179
A186: 180 | B186: they taste | C186: loro assaggiano | F186: 0 | G186: 1 | H186: 180
A187: 181 | B187: they stink | C187: loro puzzano | F187: 0 | G187: 1 | H187: 181
A188: 182 | B188: bad | C188: cattivo | F188: 0 | G188: 1 | H188: 182
A189: 183 | B189: taste | C189: un sapore | D189: a | F189: 0 | G189: 1 | H189: 183
A190: 184 | B190: fragrant | C190: profumo | D190: m. | F190: 0 | G190: 1 | H190: 184
A191: 185 | B191: finger | C191: dito | D191: toe | F191: 0 | G191: 1 | H191: 185
A192: 186 | B192: foot | C192: piede | F192: 0 | G192: 1 | H192: 186
A193: 187 | B193: a hand | C193: una mano | F193: 0 | G193: 1 | H193: 187
A194: 188 | B194: spring | C194: primavera | F194: 0 | G194: 1 | H194: 188
A195: 189 | B195: summer | C195: estate | F195: 0 | G195: 1 | H195: 189
A196: 190 | B196: winter | C196: inverno | F196: 0 | G196: 1 | H196: 190
A197: 191 | B197: fall | C197: autunno | F197: 0 | G197: 1 | H197: 191
A198: 192 | B198: night | C198: notte | F198: 0 | G198: 1 | H198: 192
A199: 193 | B199: glasses | C199: occhiali | F199: 0 | G199: 1 | H199: 193
A200: 194 | B200: umbrella | C200: un ombrello | D200: an | F200: 0 | G200: 1 | H200: =A200 -> 194
A201: =1+A200 -> 195 | B201: ticket | C201: biglietto | F201: 0 | G201: 1 | H201: 195
A202: 196 | B202: ladder | C202: scala | F202: 0 | G202: 1 | H202: 196
A203: 197 | B203: sun | C203: sole | F203: 0 | G203: =IF($A$5>A203,0,IF(A203>$A$6,1,(F203+1)/$H$5+G202)) -> 1 | H203: 197
... 2806 more rows

Sheet Phrases
A4: 2999 | B4: =Drill!M12 -> à = 1; è = 2; ì = 3; ò = 4; ù = 5 | C4: =Drill!Q12 -> 6 = 6; 7 = 7; 8 = 8; 9 = 9 | H4: Range Sum
A5: =IF(ISNUMBER(Select!E7),IF(Select!E7>1,IF(Select!E7>A4,1,IF(Select!E8<=Select!E7,1,Select!E7)),1),1) -> 1 | B5: =Drill!M3 -> English | C5: =Drill!M4 -> Italian | D5: =Drill!M3&" Hints" -> English Hints | E5: =Drill!M4&" Hints" -> Italian Hints | F5: Delta | G5: Range Cum. | H5: =SUM(OFFSET(Adjusts1,A5-1,0,A6-A5+1,1))+A6-A5+1 -> 3 | M5: =Drill!M5 -> Character: | N5: =Drill!N5 -> 0 | O5: =Drill!O5 -> à | P5: =Drill!P5 -> è | Q5: =Drill!Q5 -> ì | R5: =Drill!R5 -> ò | S5: =Drill!S5 -> ù | T5: =Drill!T5 -> 6 | U5: =Drill!U5 -> 7 | V5: =Drill!V5 -> 8 | W5: =Drill!W5 -> 9 | X5: =Drill!X5 -> à | Y5: =Drill!Y5 -> è | Z5: =Drill!Z5 -> ì | AA5: =Drill!AA5 -> ò | AB5: =Drill!AB5 -> ù | AC5: =Drill!AC5 -> 6 | AD5: =Drill!AD5 -> 7 | AE5: =Drill!AE5 -> 8 | AF5: =Drill!AF5 -> 9 | AG5: =Drill!AG5 -> à | AH5: =Drill!AH5 -> è | AI5: =Drill!AI5 -> ì | AJ5: =Drill!AJ5 -> ò | AK5: =Drill!AK5 -> ù | AL5: =Drill!AL5 -> 6 | AM5: =Drill!AM5 -> 7 | AN5: =Drill!AN5 -> 8 | AO5: =Drill!AO5 -> 9 | AP5: =Drill!AP5 -> à | AQ5: =Drill!AQ5 -> è | AR5: =Drill!AR5 -> í | AS5: =Drill!AS5 -> ò | AT5: =Drill!AT5 -> ù | AU5: =Drill!AU5 -> 6 | AV5: =Drill!AV5 -> 7 | AW5: =Drill!AW5 -> 8 | AX5: =Drill!AX5 -> 9
A6: =IF(ISNUMBER(Select!E8),IF(Select!E8>A4,B6,IF(Select!E8<=A5,B6,IF(Select!E8>B6,B6,Select!E8))),B6) -> 3 | B6: =A4-COUNTBLANK(B7:B3005) -> 3 | F6: Add to 100% | G6: 0 | H6: 0 | M6: =Drill!M6 -> Code: | N6: =Drill!N6 -> 0 | O6: =Drill!O6 -> 1 | P6: =Drill!P6 -> 2 | Q6: =Drill!Q6 -> 3 | R6: =Drill!R6 -> 4 | S6: =Drill!S6 -> 5 | T6: =Drill!T6 -> 6 | U6: =Drill!U6 -> 7 | V6: =Drill!V6 -> 8 | W6: =Drill!W6 -> 9 | X6: =Drill!X6 -> 1 | Y6: =Drill!Y6 -> 2 | Z6: =Drill!Z6 -> 3 | AA6: =Drill!AA6 -> 4 | AB6: =Drill!AB6 -> 5 | AC6: =Drill!AC6 -> 6 | AD6: =Drill!AD6 -> 7 | AE6: =Drill!AE6 -> 8 | AF6: =Drill!AF6 -> 9 | AG6: =Drill!AG6 -> 1 | AH6: =Drill!AH6 -> 2 | AI6: =Drill!AI6 -> 3 | AJ6: =Drill!AJ6 -> 4 | AK6: =Drill!AK6 -> 5 | AL6: =Drill!AL6 -> 6 | AM6: =Drill!AM6 -> 7 | AN6: =Drill!AN6 -> 8 | AO6: =Drill!AO6 -> 9 | AP6: =Drill!AP6 -> 1 | AQ6: =Drill!AQ6 -> 2 | AR6: =Drill!AR6 -> 3 | AS6: =Drill!AS6 -> 4 | AT6: =Drill!AT6 -> 5 | AU6: =Drill!AU6 -> 6 | AV6: =Drill!AV6 -> ~ | AW6: =Drill!AW6 -> ~ | AX6: =Drill!AX6 -> ~
A7: =1 -> 1 | B7: Did you like it? | C7: Ti è piaciuto? | F7: 0 | G7: =IF(OR($A$5>A7,A7>$A$6),0,(F7+1)/$H$5+G6) -> 0.3333333333 | H7: =A7 -> 1
A8: =1+A7 -> 2 | B8: I'm not allowed to have any alcohol | C8: Non mi è permesso bere alcolici | F8: 0 | G8: =IF(OR($A$5>A8,A8>$A$6),0,(F8+1)/$H$5+G7) -> 0.6666666667 | H8: =A8 -> 2
A9: =1+A8 -> 3 | B9: What's the name of this dish? | C9: Come si chiama questo piatto? | F9: 0 | G9: =IF(OR($A$5>A9,A9>$A$6),0,(F9+1)/$H$5+G8) -> 1 | H9: 3 | M9: =Drill!M9 -> Step trans: | N9: 1 | O9: =IF(ISERR(FIND(O6,N9)),N9,LEFT(N9,FIND(O6,N9)-1)&O5&MID(N9,FIND(O6,N9)+1,LEN(N9))) -> à | P9: =IF(ISERR(FIND(P6,O9)),O9,LEFT(O9,FIND(P6,O9)-1)&P5&MID(O9,FIND(P6,O9)+1,LEN(O9))) -> à | Q9: à | R9: à | S9: à | T9: à | U9: à | V9: à | W9: à | X9: à | Y9: à | Z9: à | AA9: à | AB9: à | AC9: à | AD9: à | AE9: à | AF9: à | AG9: à | AH9: à | AI9: à | AJ9: à | AK9: à | AL9: à | AM9: à | AN9: à | AO9: à | AP9: à | AQ9: à | AR9: à | AS9: à | AT9: à | AU9: à | AV9: à | AW9: à | AX9: à
A10: 4 | F10: 0 | G10: =IF($A$5>A10,0,IF(A10>$A$6,1,(F10+1)/$H$5+G9)) -> 1 | H10: 4 | M10: =Drill!M10 -> W/char: | N10: =IF(N9=0,"",IF(AX9=0,"",AX9)) -> à
A11: 5 | F11: 0 | G11: =IF($A$5>A11,0,IF(A11>$A$6,1,(F11+1)/$H$5+G10)) -> 1 | H11: 5
A12: 6 | F12: 0 | G12: 1 | H12: 6
A13: 7 | F13: 0 | G13: 1 | H13: 7
A14: 8 | F14: 0 | G14: 1 | H14: 8
A15: 9 | F15: 0 | G15: 1 | H15: 9
A16: 10 | F16: 0 | G16: 1 | H16: 10
A17: 11 | F17: 0 | G17: 1 | H17: 11
A18: 12 | F18: 0 | G18: 1 | H18: 12
A19: 13 | F19: 0 | G19: 1 | H19: 13
A20: 14 | F20: 0 | G20: 1 | H20: 14
A21: 15 | F21: 0 | G21: 1 | H21: 15
A22: 16 | F22: 0 | G22: 1 | H22: 16
A23: 17 | F23: 0 | G23: 1 | H23: 17
A24: 18 | F24: 0 | G24: 1 | H24: 18
A25: 19 | F25: 0 | G25: 1 | H25: 19
A26: 20 | F26: 0 | G26: 1 | H26: 20
A27: 21 | F27: 0 | G27: 1 | H27: 21
A28: 22 | F28: 0 | G28: 1 | H28: 22
A29: 23 | F29: 0 | G29: 1 | H29: 23
A30: 24 | F30: 0 | G30: 1 | H30: 24
A31: 25 | F31: 0 | G31: 1 | H31: 25
A32: 26 | F32: 0 | G32: 1 | H32: 26
A33: 27 | F33: 0 | G33: 1 | H33: 27
A34: 28 | F34: 0 | G34: 1 | H34: 28
A35: 29 | F35: 0 | G35: 1 | H35: 29
A36: 30 | F36: 0 | G36: 1 | H36: 30
A37: 31 | F37: 0 | G37: 1 | H37: 31
A38: 32 | F38: 0 | G38: 1 | H38: 32
A39: 33 | F39: 0 | G39: 1 | H39: 33
A40: 34 | F40: 0 | G40: 1 | H40: 34
A41: 35 | F41: 0 | G41: 1 | H41: 35
A42: 36 | F42: 0 | G42: 1 | H42: 36
A43: 37 | F43: 0 | G43: 1 | H43: 37
A44: 38 | F44: 0 | G44: 1 | H44: 38
A45: 39 | F45: 0 | G45: 1 | H45: 39
A46: 40 | F46: 0 | G46: 1 | H46: 40
A47: 41 | F47: 0 | G47: 1 | H47: 41
A48: 42 | F48: 0 | G48: 1 | H48: 42
A49: 43 | F49: 0 | G49: 1 | H49: 43
A50: 44 | F50: 0 | G50: 1 | H50: 44
A51: 45 | F51: 0 | G51: 1 | H51: 45
A52: 46 | F52: 0 | G52: 1 | H52: 46
A53: 47 | F53: 0 | G53: 1 | H53: 47
A54: 48 | F54: 0 | G54: 1 | H54: 48
A55: 49 | F55: 0 | G55: 1 | H55: 49
A56: 50 | F56: 0 | G56: 1 | H56: 50
A57: 51 | F57: 0 | G57: 1 | H57: 51
A58: 52 | F58: 0 | G58: 1 | H58: 52
A59: 53 | F59: 0 | G59: 1 | H59: 53
A60: 54 | F60: 0 | G60: 1 | H60: 54
A61: 55 | F61: 0 | G61: 1 | H61: 55
A62: 56 | F62: 0 | G62: 1 | H62: 56
A63: 57 | F63: 0 | G63: 1 | H63: 57
A64: 58 | F64: 0 | G64: 1 | H64: 58
A65: 59 | F65: 0 | G65: 1 | H65: 59
A66: 60 | F66: 0 | G66: 1 | H66: 60
A67: 61 | F67: 0 | G67: 1 | H67: 61
A68: 62 | F68: 0 | G68: 1 | H68: 62
A69: 63 | F69: 0 | G69: 1 | H69: 63
A70: 64 | F70: 0 | G70: 1 | H70: 64
A71: 65 | F71: 0 | G71: 1 | H71: 65
A72: 66 | F72: 0 | G72: 1 | H72: =A72 -> 66
A73: =1+A72 -> 67 | F73: 0 | G73: 1 | H73: 67
A74: 68 | F74: 0 | G74: 1 | H74: 68
A75: 69 | F75: 0 | G75: =IF($A$5>A75,0,IF(A75>$A$6,1,(F75+1)/$H$5+G74)) -> 1 | H75: 69
A76: 70 | F76: 0 | G76: 1 | H76: 70
A77: 71 | F77: 0 | G77: 1 | H77: 71
A78: 72 | F78: 0 | G78: 1 | H78: 72
A79: 73 | F79: 0 | G79: 1 | H79: 73
A80: 74 | F80: 0 | G80: 1 | H80: 74
A81: 75 | F81: 0 | G81: 1 | H81: 75
A82: 76 | F82: 0 | G82: 1 | H82: 76
A83: 77 | F83: 0 | G83: 1 | H83: 77
A84: 78 | F84: 0 | G84: 1 | H84: 78
A85: 79 | F85: 0 | G85: 1 | H85: 79
A86: 80 | F86: 0 | G86: 1 | H86: 80
A87: 81 | F87: 0 | G87: 1 | H87: 81
A88: 82 | F88: 0 | G88: 1 | H88: 82
A89: 83 | F89: 0 | G89: 1 | H89: 83
A90: 84 | F90: 0 | G90: 1 | H90: 84
A91: 85 | F91: 0 | G91: 1 | H91: 85
A92: 86 | F92: 0 | G92: 1 | H92: 86
A93: 87 | F93: 0 | G93: 1 | H93: 87
A94: 88 | F94: 0 | G94: 1 | H94: 88
A95: 89 | F95: 0 | G95: 1 | H95: 89
A96: 90 | F96: 0 | G96: 1 | H96: 90
A97: 91 | F97: 0 | G97: 1 | H97: 91
A98: 92 | F98: 0 | G98: 1 | H98: 92
A99: 93 | F99: 0 | G99: 1 | H99: 93
A100: 94 | F100: 0 | G100: 1 | H100: 94
A101: 95 | F101: 0 | G101: 1 | H101: 95
A102: 96 | F102: 0 | G102: 1 | H102: 96
A103: 97 | F103: 0 | G103: 1 | H103: 97
A104: 98 | F104: 0 | G104: 1 | H104: 98
A105: 99 | F105: 0 | G105: 1 | H105: 99
A106: 100 | F106: 0 | G106: 1 | H106: 100
A107: 101 | F107: 0 | G107: 1 | H107: 101
A108: 102 | F108: 0 | G108: 1 | H108: 102
A109: 103 | F109: 0 | G109: 1 | H109: 103
A110: 104 | F110: 0 | G110: 1 | H110: 104
A111: 105 | F111: 0 | G111: 1 | H111: 105
A112: 106 | F112: 0 | G112: 1 | H112: 106
A113: 107 | F113: 0 | G113: 1 | H113: 107
A114: 108 | F114: 0 | G114: 1 | H114: 108
A115: 109 | F115: 0 | G115: 1 | H115: 109
A116: 110 | F116: 0 | G116: 1 | H116: 110
A117: 111 | F117: 0 | G117: 1 | H117: 111
A118: 112 | F118: 0 | G118: 1 | H118: 112
A119: 113 | F119: 0 | G119: 1 | H119: 113
A120: 114 | F120: 0 | G120: 1 | H120: 114
A121: 115 | F121: 0 | G121: 1 | H121: 115
A122: 116 | F122: 0 | G122: 1 | H122: 116
A123: 117 | F123: 0 | G123: 1 | H123: 117
A124: 118 | F124: 0 | G124: 1 | H124: 118
A125: 119 | F125: 0 | G125: 1 | H125: 119
A126: 120 | F126: 0 | G126: 1 | H126: 120
A127: 121 | F127: 0 | G127: 1 | H127: 121
A128: 122 | F128: 0 | G128: 1 | H128: 122
A129: 123 | F129: 0 | G129: 1 | H129: 123
A130: 124 | F130: 0 | G130: 1 | H130: 124
A131: 125 | F131: 0 | G131: 1 | H131: 125
A132: 126 | F132: 0 | G132: 1 | H132: 126
A133: 127 | F133: 0 | G133: 1 | H133: 127
A134: 128 | F134: 0 | G134: 1 | H134: 128
A135: 129 | F135: 0 | G135: 1 | H135: 129
A136: 130 | F136: 0 | G136: 1 | H136: =A136 -> 130
A137: =1+A136 -> 131 | F137: 0 | G137: 1 | H137: 131
A138: 132 | F138: 0 | G138: 1 | H138: 132
A139: 133 | F139: 0 | G139: =IF($A$5>A139,0,IF(A139>$A$6,1,(F139+1)/$H$5+G138)) -> 1 | H139: 133
A140: 134 | F140: 0 | G140: 1 | H140: 134
A141: 135 | F141: 0 | G141: 1 | H141: 135
A142: 136 | F142: 0 | G142: 1 | H142: 136
A143: 137 | F143: 0 | G143: 1 | H143: 137
A144: 138 | F144: 0 | G144: 1 | H144: 138
A145: 139 | F145: 0 | G145: 1 | H145: 139
A146: 140 | F146: 0 | G146: 1 | H146: 140
A147: 141 | F147: 0 | G147: 1 | H147: 141
A148: 142 | F148: 0 | G148: 1 | H148: 142
A149: 143 | F149: 0 | G149: 1 | H149: 143
A150: 144 | F150: 0 | G150: 1 | H150: 144
A151: 145 | F151: 0 | G151: 1 | H151: 145
A152: 146 | F152: 0 | G152: 1 | H152: 146
A153: 147 | F153: 0 | G153: 1 | H153: 147
A154: 148 | F154: 0 | G154: 1 | H154: 148
A155: 149 | F155: 0 | G155: 1 | H155: 149
A156: 150 | F156: 0 | G156: 1 | H156: 150
A157: 151 | F157: 0 | G157: 1 | H157: 151
A158: 152 | F158: 0 | G158: 1 | H158: 152
A159: 153 | F159: 0 | G159: 1 | H159: 153
A160: 154 | F160: 0 | G160: 1 | H160: 154
A161: 155 | F161: 0 | G161: 1 | H161: 155
A162: 156 | F162: 0 | G162: 1 | H162: 156
A163: 157 | F163: 0 | G163: 1 | H163: 157
A164: 158 | F164: 0 | G164: 1 | H164: 158
A165: 159 | F165: 0 | G165: 1 | H165: 159
A166: 160 | F166: 0 | G166: 1 | H166: 160
A167: 161 | F167: 0 | G167: 1 | H167: 161
A168: 162 | F168: 0 | G168: 1 | H168: 162
A169: 163 | F169: 0 | G169: 1 | H169: 163
A170: 164 | F170: 0 | G170: 1 | H170: 164
A171: 165 | F171: 0 | G171: 1 | H171: 165
A172: 166 | F172: 0 | G172: 1 | H172: 166
A173: 167 | F173: 0 | G173: 1 | H173: 167
A174: 168 | F174: 0 | G174: 1 | H174: 168
A175: 169 | F175: 0 | G175: 1 | H175: 169
A176: 170 | F176: 0 | G176: 1 | H176: 170
A177: 171 | F177: 0 | G177: 1 | H177: 171
A178: 172 | F178: 0 | G178: 1 | H178: 172
A179: 173 | F179: 0 | G179: 1 | H179: 173
A180: 174 | F180: 0 | G180: 1 | H180: 174
A181: 175 | F181: 0 | G181: 1 | H181: 175
A182: 176 | F182: 0 | G182: 1 | H182: 176
A183: 177 | F183: 0 | G183: 1 | H183: 177
A184: 178 | F184: 0 | G184: 1 | H184: 178
A185: 179 | F185: 0 | G185: 1 | H185: 179
A186: 180 | F186: 0 | G186: 1 | H186: 180
A187: 181 | F187: 0 | G187: 1 | H187: 181
A188: 182 | F188: 0 | G188: 1 | H188: 182
A189: 183 | F189: 0 | G189: 1 | H189: 183
A190: 184 | F190: 0 | G190: 1 | H190: 184
A191: 185 | F191: 0 | G191: 1 | H191: 185
A192: 186 | F192: 0 | G192: 1 | H192: 186
A193: 187 | F193: 0 | G193: 1 | H193: 187
A194: 188 | F194: 0 | G194: 1 | H194: 188
A195: 189 | F195: 0 | G195: 1 | H195: 189
A196: 190 | F196: 0 | G196: 1 | H196: 190
A197: 191 | F197: 0 | G197: 1 | H197: 191
A198: 192 | F198: 0 | G198: 1 | H198: 192
A199: 193 | F199: 0 | G199: 1 | H199: 193
A200: 194 | F200: 0 | G200: 1 | H200: =A200 -> 194
A201: =1+A200 -> 195 | F201: 0 | G201: 1 | H201: 195
A202: 196 | F202: 0 | G202: 1 | H202: 196
A203: 197 | F203: 0 | G203: =IF($A$5>A203,0,IF(A203>$A$6,1,(F203+1)/$H$5+G202)) -> 1 | H203: 197
... 2806 more rows

Sheet Set A
A4: 2999 | B4: =Drill!M12 -> à = 1; è = 2; ì = 3; ò = 4; ù = 5 | C4: =Drill!Q12 -> 6 = 6; 7 = 7; 8 = 8; 9 = 9 | H4: Range Sum
A5: =IF(ISNUMBER(Select!E7),IF(Select!E7>1,IF(Select!E7>A4,1,IF(Select!E8<=Select!E7,1,Select!E7)),1),1) -> 1 | B5: =Drill!M3 -> English | C5: =Drill!M4 -> Italian | D5: =Drill!M3&" Hints" -> English Hints | E5: =Drill!M4&" Hints" -> Italian Hints | F5: Delta | G5: Range Cum. | H5: =SUM(OFFSET(Adjusts2,A5-1,0,A6-A5+1,1))+A6-A5+1 -> 5 | M5: =Drill!M5 -> Character: | N5: =Drill!N5 -> 0 | O5: =Drill!O5 -> à | P5: =Drill!P5 -> è | Q5: =Drill!Q5 -> ì | R5: =Drill!R5 -> ò | S5: =Drill!S5 -> ù | T5: =Drill!T5 -> 6 | U5: =Drill!U5 -> 7 | V5: =Drill!V5 -> 8 | W5: =Drill!W5 -> 9 | X5: =Drill!X5 -> à | Y5: =Drill!Y5 -> è | Z5: =Drill!Z5 -> ì | AA5: =Drill!AA5 -> ò | AB5: =Drill!AB5 -> ù | AC5: =Drill!AC5 -> 6 | AD5: =Drill!AD5 -> 7 | AE5: =Drill!AE5 -> 8 | AF5: =Drill!AF5 -> 9 | AG5: =Drill!AG5 -> à | AH5: =Drill!AH5 -> è | AI5: =Drill!AI5 -> ì | AJ5: =Drill!AJ5 -> ò | AK5: =Drill!AK5 -> ù | AL5: =Drill!AL5 -> 6 | AM5: =Drill!AM5 -> 7 | AN5: =Drill!AN5 -> 8 | AO5: =Drill!AO5 -> 9 | AP5: =Drill!AP5 -> à | AQ5: =Drill!AQ5 -> è | AR5: =Drill!AR5 -> í | AS5: =Drill!AS5 -> ò | AT5: =Drill!AT5 -> ù | AU5: =Drill!AU5 -> 6 | AV5: =Drill!AV5 -> 7 | AW5: =Drill!AW5 -> 8 | AX5: =Drill!AX5 -> 9
A6: =IF(ISNUMBER(Select!E8),IF(Select!E8>A4,B6,IF(Select!E8<=A5,B6,IF(Select!E8>B6,B6,Select!E8))),B6) -> 5 | B6: =A4-COUNTBLANK(B7:B3005) -> 5 | F6: Add to 100% | G6: 0 | H6: 0 | M6: =Drill!M6 -> Code: | N6: =Drill!N6 -> 0 | O6: =Drill!O6 -> 1 | P6: =Drill!P6 -> 2 | Q6: =Drill!Q6 -> 3 | R6: =Drill!R6 -> 4 | S6: =Drill!S6 -> 5 | T6: =Drill!T6 -> 6 | U6: =Drill!U6 -> 7 | V6: =Drill!V6 -> 8 | W6: =Drill!W6 -> 9 | X6: =Drill!X6 -> 1 | Y6: =Drill!Y6 -> 2 | Z6: =Drill!Z6 -> 3 | AA6: =Drill!AA6 -> 4 | AB6: =Drill!AB6 -> 5 | AC6: =Drill!AC6 -> 6 | AD6: =Drill!AD6 -> 7 | AE6: =Drill!AE6 -> 8 | AF6: =Drill!AF6 -> 9 | AG6: =Drill!AG6 -> 1 | AH6: =Drill!AH6 -> 2 | AI6: =Drill!AI6 -> 3 | AJ6: =Drill!AJ6 -> 4 | AK6: =Drill!AK6 -> 5 | AL6: =Drill!AL6 -> 6 | AM6: =Drill!AM6 -> 7 | AN6: =Drill!AN6 -> 8 | AO6: =Drill!AO6 -> 9 | AP6: =Drill!AP6 -> 1 | AQ6: =Drill!AQ6 -> 2 | AR6: =Drill!AR6 -> 3 | AS6: =Drill!AS6 -> 4 | AT6: =Drill!AT6 -> 5 | AU6: =Drill!AU6 -> 6 | AV6: =Drill!AV6 -> ~ | AW6: =Drill!AW6 -> ~ | AX6: =Drill!AX6 -> ~
A7: =1 -> 1 | B7: bread | C7: pane | F7: 0 | G7: =IF(OR($A$5>A7,A7>$A$6),0,(F7+1)/$H$5+G6) -> 0.2 | H7: =A7 -> 1
A8: =1+A7 -> 2 | B8: breakfast | C8: colazione | F8: 0 | G8: =IF(OR($A$5>A8,A8>$A$6),0,(F8+1)/$H$5+G7) -> 0.4 | H8: =A8 -> 2
A9: =1+A8 -> 3 | B9: coffee | C9: caffè | F9: 0 | G9: =IF(OR($A$5>A9,A9>$A$6),0,(F9+1)/$H$5+G8) -> 0.6 | H9: 3 | M9: =Drill!M9 -> Step trans: | N9: 1456 | O9: =IF(ISERR(FIND(O6,N9)),N9,LEFT(N9,FIND(O6,N9)-1)&O5&MID(N9,FIND(O6,N9)+1,LEN(N9))) -> à456 | P9: =IF(ISERR(FIND(P6,O9)),O9,LEFT(O9,FIND(P6,O9)-1)&P5&MID(O9,FIND(P6,O9)+1,LEN(O9))) -> à456 | Q9: à456 | R9: àò56 | S9: àòù6 | T9: àòù6 | U9: àòù6 | V9: àòù6 | W9: àòù6 | X9: àòù6 | Y9: àòù6 | Z9: àòù6 | AA9: àòù6 | AB9: àòù6 | AC9: àòù6 | AD9: àòù6 | AE9: àòù6 | AF9: àòù6 | AG9: àòù6 | AH9: àòù6 | AI9: àòù6 | AJ9: àòù6 | AK9: àòù6 | AL9: àòù6 | AM9: àòù6 | AN9: àòù6 | AO9: àòù6 | AP9: àòù6 | AQ9: àòù6 | AR9: àòù6 | AS9: àòù6 | AT9: àòù6 | AU9: àòù6 | AV9: àòù6 | AW9: àòù6 | AX9: àòù6
A10: 4 | B10: roll | C10: panino | F10: 0 | G10: =IF($A$5>A10,0,IF(A10>$A$6,1,(F10+1)/$H$5+G9)) -> 0.8 | H10: 4 | M10: =Drill!M10 -> W/char: | N10: =IF(N9=0,"",IF(AX9=0,"",AX9)) -> àòù6
A11: 5 | B11: sugar | C11: zucchero | F11: 0 | G11: =IF($A$5>A11,0,IF(A11>$A$6,1,(F11+1)/$H$5+G10)) -> 1 | H11: 5
A12: 6 | F12: 0 | G12: 1 | H12: 6
A13: 7 | F13: 0 | G13: 1 | H13: 7
A14: 8 | F14: 0 | G14: 1 | H14: 8
A15: 9 | F15: 0 | G15: 1 | H15: 9
A16: 10 | F16: 0 | G16: 1 | H16: 10
A17: 11 | F17: 0 | G17: 1 | H17: 11
A18: 12 | F18: 0 | G18: 1 | H18: 12
A19: 13 | F19: 0 | G19: 1 | H19: 13
A20: 14 | F20: 0 | G20: 1 | H20: 14
A21: 15 | F21: 0 | G21: 1 | H21: 15
A22: 16 | F22: 0 | G22: 1 | H22: 16
A23: 17 | F23: 0 | G23: 1 | H23: 17
A24: 18 | F24: 0 | G24: 1 | H24: 18
A25: 19 | F25: 0 | G25: 1 | H25: 19
A26: 20 | F26: 0 | G26: 1 | H26: 20
A27: 21 | F27: 0 | G27: 1 | H27: 21
A28: 22 | F28: 0 | G28: 1 | H28: 22
A29: 23 | F29: 0 | G29: 1 | H29: 23
A30: 24 | F30: 0 | G30: 1 | H30: 24
A31: 25 | F31: 0 | G31: 1 | H31: 25
A32: 26 | F32: 0 | G32: 1 | H32: 26
A33: 27 | F33: 0 | G33: 1 | H33: 27
A34: 28 | F34: 0 | G34: 1 | H34: 28
A35: 29 | F35: 0 | G35: 1 | H35: 29
A36: 30 | F36: 0 | G36: 1 | H36: 30
A37: 31 | F37: 0 | G37: 1 | H37: 31
A38: 32 | F38: 0 | G38: 1 | H38: 32
A39: 33 | F39: 0 | G39: 1 | H39: 33
A40: 34 | F40: 0 | G40: 1 | H40: 34
A41: 35 | F41: 0 | G41: 1 | H41: 35
A42: 36 | F42: 0 | G42: 1 | H42: 36
A43: 37 | F43: 0 | G43: 1 | H43: 37
A44: 38 | F44: 0 | G44: 1 | H44: 38
A45: 39 | F45: 0 | G45: 1 | H45: 39
A46: 40 | F46: 0 | G46: 1 | H46: 40
A47: 41 | F47: 0 | G47: 1 | H47: 41
A48: 42 | F48: 0 | G48: 1 | H48: 42
A49: 43 | F49: 0 | G49: 1 | H49: 43
A50: 44 | F50: 0 | G50: 1 | H50: 44
A51: 45 | F51: 0 | G51: 1 | H51: 45
A52: 46 | F52: 0 | G52: 1 | H52: 46
A53: 47 | F53: 0 | G53: 1 | H53: 47
A54: 48 | F54: 0 | G54: 1 | H54: 48
A55: 49 | F55: 0 | G55: 1 | H55: 49
A56: 50 | F56: 0 | G56: 1 | H56: 50
A57: 51 | F57: 0 | G57: 1 | H57: 51
A58: 52 | F58: 0 | G58: 1 | H58: 52
A59: 53 | F59: 0 | G59: 1 | H59: 53
A60: 54 | F60: 0 | G60: 1 | H60: 54
A61: 55 | F61: 0 | G61: 1 | H61: 55
A62: 56 | F62: 0 | G62: 1 | H62: 56
A63: 57 | F63: 0 | G63: 1 | H63: 57
A64: 58 | F64: 0 | G64: 1 | H64: 58
A65: 59 | F65: 0 | G65: 1 | H65: 59
A66: 60 | F66: 0 | G66: 1 | H66: 60
A67: 61 | F67: 0 | G67: 1 | H67: 61
A68: 62 | F68: 0 | G68: 1 | H68: 62
A69: 63 | F69: 0 | G69: 1 | H69: 63
A70: 64 | F70: 0 | G70: 1 | H70: 64
A71: 65 | F71: 0 | G71: 1 | H71: 65
A72: 66 | F72: 0 | G72: 1 | H72: =A72 -> 66
A73: =1+A72 -> 67 | F73: 0 | G73: 1 | H73: 67
A74: 68 | F74: 0 | G74: 1 | H74: 68
A75: 69 | F75: 0 | G75: =IF($A$5>A75,0,IF(A75>$A$6,1,(F75+1)/$H$5+G74)) -> 1 | H75: 69
A76: 70 | F76: 0 | G76: 1 | H76: 70
A77: 71 | F77: 0 | G77: 1 | H77: 71
A78: 72 | F78: 0 | G78: 1 | H78: 72
A79: 73 | F79: 0 | G79: 1 | H79: 73
A80: 74 | F80: 0 | G80: 1 | H80: 74
A81: 75 | F81: 0 | G81: 1 | H81: 75
A82: 76 | F82: 0 | G82: 1 | H82: 76
A83: 77 | F83: 0 | G83: 1 | H83: 77
A84: 78 | F84: 0 | G84: 1 | H84: 78
A85: 79 | F85: 0 | G85: 1 | H85: 79
A86: 80 | F86: 0 | G86: 1 | H86: 80
A87: 81 | F87: 0 | G87: 1 | H87: 81
A88: 82 | F88: 0 | G88: 1 | H88: 82
A89: 83 | F89: 0 | G89: 1 | H89: 83
A90: 84 | F90: 0 | G90: 1 | H90: 84
A91: 85 | F91: 0 | G91: 1 | H91: 85
A92: 86 | F92: 0 | G92: 1 | H92: 86
A93: 87 | F93: 0 | G93: 1 | H93: 87
A94: 88 | F94: 0 | G94: 1 | H94: 88
A95: 89 | F95: 0 | G95: 1 | H95: 89
A96: 90 | F96: 0 | G96: 1 | H96: 90
A97: 91 | F97: 0 | G97: 1 | H97: 91
A98: 92 | F98: 0 | G98: 1 | H98: 92
A99: 93 | F99: 0 | G99: 1 | H99: 93
A100: 94 | F100: 0 | G100: 1 | H100: 94
A101: 95 | F101: 0 | G101: 1 | H101: 95
A102: 96 | F102: 0 | G102: 1 | H102: 96
A103: 97 | F103: 0 | G103: 1 | H103: 97
A104: 98 | F104: 0 | G104: 1 | H104: 98
A105: 99 | F105: 0 | G105: 1 | H105: 99
A106: 100 | F106: 0 | G106: 1 | H106: 100
A107: 101 | F107: 0 | G107: 1 | H107: 101
A108: 102 | F108: 0 | G108: 1 | H108: 102
A109: 103 | F109: 0 | G109: 1 | H109: 103
A110: 104 | F110: 0 | G110: 1 | H110: 104
A111: 105 | F111: 0 | G111: 1 | H111: 105
A112: 106 | F112: 0 | G112: 1 | H112: 106
A113: 107 | F113: 0 | G113: 1 | H113: 107
A114: 108 | F114: 0 | G114: 1 | H114: 108
A115: 109 | F115: 0 | G115: 1 | H115: 109
A116: 110 | F116: 0 | G116: 1 | H116: 110
A117: 111 | F117: 0 | G117: 1 | H117: 111
A118: 112 | F118: 0 | G118: 1 | H118: 112
A119: 113 | F119: 0 | G119: 1 | H119: 113
A120: 114 | F120: 0 | G120: 1 | H120: 114
A121: 115 | F121: 0 | G121: 1 | H121: 115
A122: 116 | F122: 0 | G122: 1 | H122: 116
A123: 117 | F123: 0 | G123: 1 | H123: 117
A124: 118 | F124: 0 | G124: 1 | H124: 118
A125: 119 | F125: 0 | G125: 1 | H125: 119
A126: 120 | F126: 0 | G126: 1 | H126: 120
A127: 121 | F127: 0 | G127: 1 | H127: 121
A128: 122 | F128: 0 | G128: 1 | H128: 122
A129: 123 | F129: 0 | G129: 1 | H129: 123
A130: 124 | F130: 0 | G130: 1 | H130: 124
A131: 125 | F131: 0 | G131: 1 | H131: 125
A132: 126 | F132: 0 | G132: 1 | H132: 126
A133: 127 | F133: 0 | G133: 1 | H133: 127
A134: 128 | F134: 0 | G134: 1 | H134: 128
A135: 129 | F135: 0 | G135: 1 | H135: 129
A136: 130 | F136: 0 | G136: 1 | H136: =A136 -> 130
A137: =1+A136 -> 131 | F137: 0 | G137: 1 | H137: 131
A138: 132 | F138: 0 | G138: 1 | H138: 132
A139: 133 | F139: 0 | G139: =IF($A$5>A139,0,IF(A139>$A$6,1,(F139+1)/$H$5+G138)) -> 1 | H139: 133
A140: 134 | F140: 0 | G140: 1 | H140: 134
A141: 135 | F141: 0 | G141: 1 | H141: 135
A142: 136 | F142: 0 | G142: 1 | H142: 136
A143: 137 | F143: 0 | G143: 1 | H143: 137
A144: 138 | F144: 0 | G144: 1 | H144: 138
A145: 139 | F145: 0 | G145: 1 | H145: 139
A146: 140 | F146: 0 | G146: 1 | H146: 140
A147: 141 | F147: 0 | G147: 1 | H147: 141
A148: 142 | F148: 0 | G148: 1 | H148: 142
A149: 143 | F149: 0 | G149: 1 | H149: 143
A150: 144 | F150: 0 | G150: 1 | H150: 144
A151: 145 | F151: 0 | G151: 1 | H151: 145
A152: 146 | F152: 0 | G152: 1 | H152: 146
A153: 147 | F153: 0 | G153: 1 | H153: 147
A154: 148 | F154: 0 | G154: 1 | H154: 148
A155: 149 | F155: 0 | G155: 1 | H155: 149
A156: 150 | F156: 0 | G156: 1 | H156: 150
A157: 151 | F157: 0 | G157: 1 | H157: 151
A158: 152 | F158: 0 | G158: 1 | H158: 152
A159: 153 | F159: 0 | G159: 1 | H159: 153
A160: 154 | F160: 0 | G160: 1 | H160: 154
A161: 155 | F161: 0 | G161: 1 | H161: 155
A162: 156 | F162: 0 | G162: 1 | H162: 156
A163: 157 | F163: 0 | G163: 1 | H163: 157
A164: 158 | F164: 0 | G164: 1 | H164: 158
A165: 159 | F165: 0 | G165: 1 | H165: 159
A166: 160 | F166: 0 | G166: 1 | H166: 160
A167: 161 | F167: 0 | G167: 1 | H167: 161
A168: 162 | F168: 0 | G168: 1 | H168: 162
A169: 163 | F169: 0 | G169: 1 | H169: 163
A170: 164 | F170: 0 | G170: 1 | H170: 164
A171: 165 | F171: 0 | G171: 1 | H171: 165
A172: 166 | F172: 0 | G172: 1 | H172: 166
A173: 167 | F173: 0 | G173: 1 | H173: 167
A174: 168 | F174: 0 | G174: 1 | H174: 168
A175: 169 | F175: 0 | G175: 1 | H175: 169
A176: 170 | F176: 0 | G176: 1 | H176: 170
A177: 171 | F177: 0 | G177: 1 | H177: 171
A178: 172 | F178: 0 | G178: 1 | H178: 172
A179: 173 | F179: 0 | G179: 1 | H179: 173
A180: 174 | F180: 0 | G180: 1 | H180: 174
A181: 175 | F181: 0 | G181: 1 | H181: 175
A182: 176 | F182: 0 | G182: 1 | H182: 176
A183: 177 | F183: 0 | G183: 1 | H183: 177
A184: 178 | F184: 0 | G184: 1 | H184: 178
A185: 179 | F185: 0 | G185: 1 | H185: 179
A186: 180 | F186: 0 | G186: 1 | H186: 180
A187: 181 | F187: 0 | G187: 1 | H187: 181
A188: 182 | F188: 0 | G188: 1 | H188: 182
A189: 183 | F189: 0 | G189: 1 | H189: 183
A190: 184 | F190: 0 | G190: 1 | H190: 184
A191: 185 | F191: 0 | G191: 1 | H191: 185
A192: 186 | F192: 0 | G192: 1 | H192: 186
A193: 187 | F193: 0 | G193: 1 | H193: 187
A194: 188 | F194: 0 | G194: 1 | H194: 188
A195: 189 | F195: 0 | G195: 1 | H195: 189
A196: 190 | F196: 0 | G196: 1 | H196: 190
A197: 191 | F197: 0 | G197: 1 | H197: 191
A198: 192 | F198: 0 | G198: 1 | H198: 192
A199: 193 | F199: 0 | G199: 1 | H199: 193
A200: 194 | F200: 0 | G200: 1 | H200: =A200 -> 194
A201: =1+A200 -> 195 | F201: 0 | G201: 1 | H201: 195
A202: 196 | F202: 0 | G202: 1 | H202: 196
A203: 197 | F203: 0 | G203: =IF($A$5>A203,0,IF(A203>$A$6,1,(F203+1)/$H$5+G202)) -> 1 | H203: 197
... 2811 more rows

Sheet Set B
A4: 2999 | B4: =Drill!M12 -> à = 1; è = 2; ì = 3; ò = 4; ù = 5 | C4: =Drill!Q12 -> 6 = 6; 7 = 7; 8 = 8; 9 = 9 | H4: Range Sum
A5: =IF(ISNUMBER(Select!E7),IF(Select!E7>1,IF(Select!E7>A4,1,IF(Select!E8<=Select!E7,1,Select!E7)),1),1) -> 1 | B5: =Drill!M3 -> English | C5: =Drill!M4 -> Italian | D5: =Drill!M3&" Hints" -> English Hints | E5: =Drill!M4&" Hints" -> Italian Hints | F5: Delta | G5: Range Cum. | H5: =SUM(OFFSET(Adjusts3,A5-1,0,A6-A5+1,1))+A6-A5+1 -> 5 | M5: =Drill!M5 -> Character: | N5: =Drill!N5 -> 0 | O5: =Drill!O5 -> à | P5: =Drill!P5 -> è | Q5: =Drill!Q5 -> ì | R5: =Drill!R5 -> ò | S5: =Drill!S5 -> ù | T5: =Drill!T5 -> 6 | U5: =Drill!U5 -> 7 | V5: =Drill!V5 -> 8 | W5: =Drill!W5 -> 9 | X5: =Drill!X5 -> à | Y5: =Drill!Y5 -> è | Z5: =Drill!Z5 -> ì | AA5: =Drill!AA5 -> ò | AB5: =Drill!AB5 -> ù | AC5: =Drill!AC5 -> 6 | AD5: =Drill!AD5 -> 7 | AE5: =Drill!AE5 -> 8 | AF5: =Drill!AF5 -> 9 | AG5: =Drill!AG5 -> à | AH5: =Drill!AH5 -> è | AI5: =Drill!AI5 -> ì | AJ5: =Drill!AJ5 -> ò | AK5: =Drill!AK5 -> ù | AL5: =Drill!AL5 -> 6 | AM5: =Drill!AM5 -> 7 | AN5: =Drill!AN5 -> 8 | AO5: =Drill!AO5 -> 9 | AP5: =Drill!AP5 -> à | AQ5: =Drill!AQ5 -> è | AR5: =Drill!AR5 -> í | AS5: =Drill!AS5 -> ò | AT5: =Drill!AT5 -> ù | AU5: =Drill!AU5 -> 6 | AV5: =Drill!AV5 -> 7 | AW5: =Drill!AW5 -> 8 | AX5: =Drill!AX5 -> 9
A6: =IF(ISNUMBER(Select!E8),IF(Select!E8>A4,B6,IF(Select!E8<=A5,B6,IF(Select!E8>B6,B6,Select!E8))),B6) -> 5 | B6: =A4-COUNTBLANK(B7:B3005) -> 5 | F6: Add to 100% | G6: 0 | H6: 0 | M6: =Drill!M6 -> Code: | N6: =Drill!N6 -> 0 | O6: =Drill!O6 -> 1 | P6: =Drill!P6 -> 2 | Q6: =Drill!Q6 -> 3 | R6: =Drill!R6 -> 4 | S6: =Drill!S6 -> 5 | T6: =Drill!T6 -> 6 | U6: =Drill!U6 -> 7 | V6: =Drill!V6 -> 8 | W6: =Drill!W6 -> 9 | X6: =Drill!X6 -> 1 | Y6: =Drill!Y6 -> 2 | Z6: =Drill!Z6 -> 3 | AA6: =Drill!AA6 -> 4 | AB6: =Drill!AB6 -> 5 | AC6: =Drill!AC6 -> 6 | AD6: =Drill!AD6 -> 7 | AE6: =Drill!AE6 -> 8 | AF6: =Drill!AF6 -> 9 | AG6: =Drill!AG6 -> 1 | AH6: =Drill!AH6 -> 2 | AI6: =Drill!AI6 -> 3 | AJ6: =Drill!AJ6 -> 4 | AK6: =Drill!AK6 -> 5 | AL6: =Drill!AL6 -> 6 | AM6: =Drill!AM6 -> 7 | AN6: =Drill!AN6 -> 8 | AO6: =Drill!AO6 -> 9 | AP6: =Drill!AP6 -> 1 | AQ6: =Drill!AQ6 -> 2 | AR6: =Drill!AR6 -> 3 | AS6: =Drill!AS6 -> 4 | AT6: =Drill!AT6 -> 5 | AU6: =Drill!AU6 -> 6 | AV6: =Drill!AV6 -> ~ | AW6: =Drill!AW6 -> ~ | AX6: =Drill!AX6 -> ~
A7: =1 -> 1 | B7: bread | C7: pane | F7: 0 | G7: =IF(OR($A$5>A7,A7>$A$6),0,(F7+1)/$H$5+G6) -> 0.2 | H7: =A7 -> 1
A8: =1+A7 -> 2 | B8: breakfast | C8: colazione | F8: 0 | G8: =IF(OR($A$5>A8,A8>$A$6),0,(F8+1)/$H$5+G7) -> 0.4 | H8: =A8 -> 2
A9: =1+A8 -> 3 | B9: coffee | C9: caffè | F9: 0 | G9: =IF(OR($A$5>A9,A9>$A$6),0,(F9+1)/$H$5+G8) -> 0.6 | H9: 3 | M9: =Drill!M9 -> Step trans: | N9: 123 | O9: =IF(ISERR(FIND(O6,N9)),N9,LEFT(N9,FIND(O6,N9)-1)&O5&MID(N9,FIND(O6,N9)+1,LEN(N9))) -> à23 | P9: =IF(ISERR(FIND(P6,O9)),O9,LEFT(O9,FIND(P6,O9)-1)&P5&MID(O9,FIND(P6,O9)+1,LEN(O9))) -> àè3 | Q9: àèì | R9: àèì | S9: àèì | T9: àèì | U9: àèì | V9: àèì | W9: àèì | X9: àèì | Y9: àèì | Z9: àèì | AA9: àèì | AB9: àèì | AC9: àèì | AD9: àèì | AE9: àèì | AF9: àèì | AG9: àèì | AH9: àèì | AI9: àèì | AJ9: àèì | AK9: àèì | AL9: àèì | AM9: àèì | AN9: àèì | AO9: àèì | AP9: àèì | AQ9: àèì | AR9: àèì | AS9: àèì | AT9: àèì | AU9: àèì | AV9: àèì | AW9: àèì | AX9: àèì
A10: 4 | B10: roll | C10: panino | F10: 0 | G10: =IF($A$5>A10,0,IF(A10>$A$6,1,(F10+1)/$H$5+G9)) -> 0.8 | H10: 4 | M10: =Drill!M10 -> W/char: | N10: =IF(N9=0,"",IF(AX9=0,"",AX9)) -> àèì
A11: 5 | B11: sugar | C11: zucchero | F11: 0 | G11: =IF($A$5>A11,0,IF(A11>$A$6,1,(F11+1)/$H$5+G10)) -> 1 | H11: 5
A12: 6 | F12: 0 | G12: 1 | H12: 6
A13: 7 | F13: 0 | G13: 1 | H13: 7
A14: 8 | F14: 0 | G14: 1 | H14: 8
A15: 9 | F15: 0 | G15: 1 | H15: 9
A16: 10 | F16: 0 | G16: 1 | H16: 10
A17: 11 | F17: 0 | G17: 1 | H17: 11
A18: 12 | F18: 0 | G18: 1 | H18: 12
A19: 13 | F19: 0 | G19: 1 | H19: 13
A20: 14 | F20: 0 | G20: 1 | H20: 14
A21: 15 | F21: 0 | G21: 1 | H21: 15
A22: 16 | F22: 0 | G22: 1 | H22: 16
A23: 17 | F23: 0 | G23: 1 | H23: 17
A24: 18 | F24: 0 | G24: 1 | H24: 18
A25: 19 | F25: 0 | G25: 1 | H25: 19
A26: 20 | F26: 0 | G26: 1 | H26: 20
A27: 21 | F27: 0 | G27: 1 | H27: 21
A28: 22 | F28: 0 | G28: 1 | H28: 22
A29: 23 | F29: 0 | G29: 1 | H29: 23
A30: 24 | F30: 0 | G30: 1 | H30: 24
A31: 25 | F31: 0 | G31: 1 | H31: 25
A32: 26 | F32: 0 | G32: 1 | H32: 26
A33: 27 | F33: 0 | G33: 1 | H33: 27
A34: 28 | F34: 0 | G34: 1 | H34: 28
A35: 29 | F35: 0 | G35: 1 | H35: 29
A36: 30 | F36: 0 | G36: 1 | H36: 30
A37: 31 | F37: 0 | G37: 1 | H37: 31
A38: 32 | F38: 0 | G38: 1 | H38: 32
A39: 33 | F39: 0 | G39: 1 | H39: 33
A40: 34 | F40: 0 | G40: 1 | H40: 34
A41: 35 | F41: 0 | G41: 1 | H41: 35
A42: 36 | F42: 0 | G42: 1 | H42: 36
A43: 37 | F43: 0 | G43: 1 | H43: 37
A44: 38 | F44: 0 | G44: 1 | H44: 38
A45: 39 | F45: 0 | G45: 1 | H45: 39
A46: 40 | F46: 0 | G46: 1 | H46: 40
A47: 41 | F47: 0 | G47: 1 | H47: 41
A48: 42 | F48: 0 | G48: 1 | H48: 42
A49: 43 | F49: 0 | G49: 1 | H49: 43
A50: 44 | F50: 0 | G50: 1 | H50: 44
A51: 45 | F51: 0 | G51: 1 | H51: 45
A52: 46 | F52: 0 | G52: 1 | H52: 46
A53: 47 | F53: 0 | G53: 1 | H53: 47
A54: 48 | F54: 0 | G54: 1 | H54: 48
A55: 49 | F55: 0 | G55: 1 | H55: 49
A56: 50 | F56: 0 | G56: 1 | H56: 50
A57: 51 | F57: 0 | G57: 1 | H57: 51
A58: 52 | F58: 0 | G58: 1 | H58: 52
A59: 53 | F59: 0 | G59: 1 | H59: 53
A60: 54 | F60: 0 | G60: 1 | H60: 54
A61: 55 | F61: 0 | G61: 1 | H61: 55
A62: 56 | F62: 0 | G62: 1 | H62: 56
A63: 57 | F63: 0 | G63: 1 | H63: 57
A64: 58 | F64: 0 | G64: 1 | H64: 58
A65: 59 | F65: 0 | G65: 1 | H65: 59
A66: 60 | F66: 0 | G66: 1 | H66: 60
A67: 61 | F67: 0 | G67: 1 | H67: 61
A68: 62 | F68: 0 | G68: 1 | H68: 62
A69: 63 | F69: 0 | G69: 1 | H69: 63
A70: 64 | F70: 0 | G70: 1 | H70: 64
A71: 65 | F71: 0 | G71: 1 | H71: 65
A72: 66 | F72: 0 | G72: 1 | H72: =A72 -> 66
A73: =1+A72 -> 67 | F73: 0 | G73: 1 | H73: 67
A74: 68 | F74: 0 | G74: 1 | H74: 68
A75: 69 | F75: 0 | G75: =IF($A$5>A75,0,IF(A75>$A$6,1,(F75+1)/$H$5+G74)) -> 1 | H75: 69
A76: 70 | F76: 0 | G76: 1 | H76: 70
A77: 71 | F77: 0 | G77: 1 | H77: 71
A78: 72 | F78: 0 | G78: 1 | H78: 72
A79: 73 | F79: 0 | G79: 1 | H79: 73
A80: 74 | F80: 0 | G80: 1 | H80: 74
A81: 75 | F81: 0 | G81: 1 | H81: 75
A82: 76 | F82: 0 | G82: 1 | H82: 76
A83: 77 | F83: 0 | G83: 1 | H83: 77
A84: 78 | F84: 0 | G84: 1 | H84: 78
A85: 79 | F85: 0 | G85: 1 | H85: 79
A86: 80 | F86: 0 | G86: 1 | H86: 80
A87: 81 | F87: 0 | G87: 1 | H87: 81
A88: 82 | F88: 0 | G88: 1 | H88: 82
A89: 83 | F89: 0 | G89: 1 | H89: 83
A90: 84 | F90: 0 | G90: 1 | H90: 84
A91: 85 | F91: 0 | G91: 1 | H91: 85
A92: 86 | F92: 0 | G92: 1 | H92: 86
A93: 87 | F93: 0 | G93: 1 | H93: 87
A94: 88 | F94: 0 | G94: 1 | H94: 88
A95: 89 | F95: 0 | G95: 1 | H95: 89
A96: 90 | F96: 0 | G96: 1 | H96: 90
A97: 91 | F97: 0 | G97: 1 | H97: 91
A98: 92 | F98: 0 | G98: 1 | H98: 92
A99: 93 | F99: 0 | G99: 1 | H99: 93
A100: 94 | F100: 0 | G100: 1 | H100: 94
A101: 95 | F101: 0 | G101: 1 | H101: 95
A102: 96 | F102: 0 | G102: 1 | H102: 96
A103: 97 | F103: 0 | G103: 1 | H103: 97
A104: 98 | F104: 0 | G104: 1 | H104: 98
A105: 99 | F105: 0 | G105: 1 | H105: 99
A106: 100 | F106: 0 | G106: 1 | H106: 100
A107: 101 | F107: 0 | G107: 1 | H107: 101
A108: 102 | F108: 0 | G108: 1 | H108: 102
A109: 103 | F109: 0 | G109: 1 | H109: 103
A110: 104 | F110: 0 | G110: 1 | H110: 104
A111: 105 | F111: 0 | G111: 1 | H111: 105
A112: 106 | F112: 0 | G112: 1 | H112: 106
A113: 107 | F113: 0 | G113: 1 | H113: 107
A114: 108 | F114: 0 | G114: 1 | H114: 108
A115: 109 | F115: 0 | G115: 1 | H115: 109
A116: 110 | F116: 0 | G116: 1 | H116: 110
A117: 111 | F117: 0 | G117: 1 | H117: 111
A118: 112 | F118: 0 | G118: 1 | H118: 112
A119: 113 | F119: 0 | G119: 1 | H119: 113
A120: 114 | F120: 0 | G120: 1 | H120: 114
A121: 115 | F121: 0 | G121: 1 | H121: 115
A122: 116 | F122: 0 | G122: 1 | H122: 116
A123: 117 | F123: 0 | G123: 1 | H123: 117
A124: 118 | F124: 0 | G124: 1 | H124: 118
A125: 119 | F125: 0 | G125: 1 | H125: 119
A126: 120 | F126: 0 | G126: 1 | H126: 120
A127: 121 | F127: 0 | G127: 1 | H127: 121
A128: 122 | F128: 0 | G128: 1 | H128: 122
A129: 123 | F129: 0 | G129: 1 | H129: 123
A130: 124 | F130: 0 | G130: 1 | H130: 124
A131: 125 | F131: 0 | G131: 1 | H131: 125
A132: 126 | F132: 0 | G132: 1 | H132: 126
A133: 127 | F133: 0 | G133: 1 | H133: 127
A134: 128 | F134: 0 | G134: 1 | H134: 128
A135: 129 | F135: 0 | G135: 1 | H135: 129
A136: 130 | F136: 0 | G136: 1 | H136: =A136 -> 130
A137: =1+A136 -> 131 | F137: 0 | G137: 1 | H137: 131
A138: 132 | F138: 0 | G138: 1 | H138: 132
A139: 133 | F139: 0 | G139: =IF($A$5>A139,0,IF(A139>$A$6,1,(F139+1)/$H$5+G138)) -> 1 | H139: 133
A140: 134 | F140: 0 | G140: 1 | H140: 134
A141: 135 | F141: 0 | G141: 1 | H141: 135
A142: 136 | F142: 0 | G142: 1 | H142: 136
A143: 137 | F143: 0 | G143: 1 | H143: 137
A144: 138 | F144: 0 | G144: 1 | H144: 138
A145: 139 | F145: 0 | G145: 1 | H145: 139
A146: 140 | F146: 0 | G146: 1 | H146: 140
A147: 141 | F147: 0 | G147: 1 | H147: 141
A148: 142 | F148: 0 | G148: 1 | H148: 142
A149: 143 | F149: 0 | G149: 1 | H149: 143
A150: 144 | F150: 0 | G150: 1 | H150: 144
A151: 145 | F151: 0 | G151: 1 | H151: 145
A152: 146 | F152: 0 | G152: 1 | H152: 146
A153: 147 | F153: 0 | G153: 1 | H153: 147
A154: 148 | F154: 0 | G154: 1 | H154: 148
A155: 149 | F155: 0 | G155: 1 | H155: 149
A156: 150 | F156: 0 | G156: 1 | H156: 150
A157: 151 | F157: 0 | G157: 1 | H157: 151
A158: 152 | F158: 0 | G158: 1 | H158: 152
A159: 153 | F159: 0 | G159: 1 | H159: 153
A160: 154 | F160: 0 | G160: 1 | H160: 154
A161: 155 | F161: 0 | G161: 1 | H161: 155
A162: 156 | F162: 0 | G162: 1 | H162: 156
A163: 157 | F163: 0 | G163: 1 | H163: 157
A164: 158 | F164: 0 | G164: 1 | H164: 158
A165: 159 | F165: 0 | G165: 1 | H165: 159
A166: 160 | F166: 0 | G166: 1 | H166: 160
A167: 161 | F167: 0 | G167: 1 | H167: 161
A168: 162 | F168: 0 | G168: 1 | H168: 162
A169: 163 | F169: 0 | G169: 1 | H169: 163
A170: 164 | F170: 0 | G170: 1 | H170: 164
A171: 165 | F171: 0 | G171: 1 | H171: 165
A172: 166 | F172: 0 | G172: 1 | H172: 166
A173: 167 | F173: 0 | G173: 1 | H173: 167
A174: 168 | F174: 0 | G174: 1 | H174: 168
A175: 169 | F175: 0 | G175: 1 | H175: 169
A176: 170 | F176: 0 | G176: 1 | H176: 170
A177: 171 | F177: 0 | G177: 1 | H177: 171
A178: 172 | F178: 0 | G178: 1 | H178: 172
A179: 173 | F179: 0 | G179: 1 | H179: 173
A180: 174 | F180: 0 | G180: 1 | H180: 174
A181: 175 | F181: 0 | G181: 1 | H181: 175
A182: 176 | F182: 0 | G182: 1 | H182: 176
A183: 177 | F183: 0 | G183: 1 | H183: 177
A184: 178 | F184: 0 | G184: 1 | H184: 178
A185: 179 | F185: 0 | G185: 1 | H185: 179
A186: 180 | F186: 0 | G186: 1 | H186: 180
A187: 181 | F187: 0 | G187: 1 | H187: 181
A188: 182 | F188: 0 | G188: 1 | H188: 182
A189: 183 | F189: 0 | G189: 1 | H189: 183
A190: 184 | F190: 0 | G190: 1 | H190: 184
A191: 185 | F191: 0 | G191: 1 | H191: 185
A192: 186 | F192: 0 | G192: 1 | H192: 186
A193: 187 | F193: 0 | G193: 1 | H193: 187
A194: 188 | F194: 0 | G194: 1 | H194: 188
A195: 189 | F195: 0 | G195: 1 | H195: 189
A196: 190 | F196: 0 | G196: 1 | H196: 190
A197: 191 | F197: 0 | G197: 1 | H197: 191
A198: 192 | F198: 0 | G198: 1 | H198: 192
A199: 193 | F199: 0 | G199: 1 | H199: 193
A200: 194 | F200: 0 | G200: 1 | H200: =A200 -> 194
A201: =1+A200 -> 195 | F201: 0 | G201: 1 | H201: 195
A202: 196 | F202: 0 | G202: 1 | H202: 196
A203: 197 | F203: 0 | G203: =IF($A$5>A203,0,IF(A203>$A$6,1,(F203+1)/$H$5+G202)) -> 1 | H203: 197
... 2806 more rows

Sheet Set C
A4: 2999 | B4: =Drill!M12 -> à = 1; è = 2; ì = 3; ò = 4; ù = 5 | C4: =Drill!Q12 -> 6 = 6; 7 = 7; 8 = 8; 9 = 9 | H4: Range Sum
A5: =IF(ISNUMBER(Select!E7),IF(Select!E7>1,IF(Select!E7>A4,1,IF(Select!E8<=Select!E7,1,Select!E7)),1),1) -> 1 | B5: =Drill!M3 -> English | C5: =Drill!M4 -> Italian | D5: =Drill!M3&" Hints" -> English Hints | E5: =Drill!M4&" Hints" -> Italian Hints | F5: Delta | G5: Range Cum. | H5: =SUM(OFFSET(Adjusts4,A5-1,0,A6-A5+1,1))+A6-A5+1 -> 5 | M5: =Drill!M5 -> Character: | N5: =Drill!N5 -> 0 | O5: =Drill!O5 -> à | P5: =Drill!P5 -> è | Q5: =Drill!Q5 -> ì | R5: =Drill!R5 -> ò | S5: =Drill!S5 -> ù | T5: =Drill!T5 -> 6 | U5: =Drill!U5 -> 7 | V5: =Drill!V5 -> 8 | W5: =Drill!W5 -> 9 | X5: =Drill!X5 -> à | Y5: =Drill!Y5 -> è | Z5: =Drill!Z5 -> ì | AA5: =Drill!AA5 -> ò | AB5: =Drill!AB5 -> ù | AC5: =Drill!AC5 -> 6 | AD5: =Drill!AD5 -> 7 | AE5: =Drill!AE5 -> 8 | AF5: =Drill!AF5 -> 9 | AG5: =Drill!AG5 -> à | AH5: =Drill!AH5 -> è | AI5: =Drill!AI5 -> ì | AJ5: =Drill!AJ5 -> ò | AK5: =Drill!AK5 -> ù | AL5: =Drill!AL5 -> 6 | AM5: =Drill!AM5 -> 7 | AN5: =Drill!AN5 -> 8 | AO5: =Drill!AO5 -> 9 | AP5: =Drill!AP5 -> à | AQ5: =Drill!AQ5 -> è | AR5: =Drill!AR5 -> í | AS5: =Drill!AS5 -> ò | AT5: =Drill!AT5 -> ù | AU5: =Drill!AU5 -> 6 | AV5: =Drill!AV5 -> 7 | AW5: =Drill!AW5 -> 8 | AX5: =Drill!AX5 -> 9
A6: =IF(ISNUMBER(Select!E8),IF(Select!E8>A4,B6,IF(Select!E8<=A5,B6,IF(Select!E8>B6,B6,Select!E8))),B6) -> 5 | B6: =A4-COUNTBLANK(B7:B3005) -> 5 | F6: Add to 100% | G6: 0 | H6: 0 | M6: =Drill!M6 -> Code: | N6: =Drill!N6 -> 0 | O6: =Drill!O6 -> 1 | P6: =Drill!P6 -> 2 | Q6: =Drill!Q6 -> 3 | R6: =Drill!R6 -> 4 | S6: =Drill!S6 -> 5 | T6: =Drill!T6 -> 6 | U6: =Drill!U6 -> 7 | V6: =Drill!V6 -> 8 | W6: =Drill!W6 -> 9 | X6: =Drill!X6 -> 1 | Y6: =Drill!Y6 -> 2 | Z6: =Drill!Z6 -> 3 | AA6: =Drill!AA6 -> 4 | AB6: =Drill!AB6 -> 5 | AC6: =Drill!AC6 -> 6 | AD6: =Drill!AD6 -> 7 | AE6: =Drill!AE6 -> 8 | AF6: =Drill!AF6 -> 9 | AG6: =Drill!AG6 -> 1 | AH6: =Drill!AH6 -> 2 | AI6: =Drill!AI6 -> 3 | AJ6: =Drill!AJ6 -> 4 | AK6: =Drill!AK6 -> 5 | AL6: =Drill!AL6 -> 6 | AM6: =Drill!AM6 -> 7 | AN6: =Drill!AN6 -> 8 | AO6: =Drill!AO6 -> 9 | AP6: =Drill!AP6 -> 1 | AQ6: =Drill!AQ6 -> 2 | AR6: =Drill!AR6 -> 3 | AS6: =Drill!AS6 -> 4 | AT6: =Drill!AT6 -> 5 | AU6: =Drill!AU6 -> 6 | AV6: =Drill!AV6 -> ~ | AW6: =Drill!AW6 -> ~ | AX6: =Drill!AX6 -> ~
A7: =1 -> 1 | B7: bread | C7: pane | F7: 0 | G7: =IF(OR($A$5>A7,A7>$A$6),0,(F7+1)/$H$5+G6) -> 0.2 | H7: =A7 -> 1
A8: =1+A7 -> 2 | B8: breakfast | C8: colazione | F8: 0 | G8: =IF(OR($A$5>A8,A8>$A$6),0,(F8+1)/$H$5+G7) -> 0.4 | H8: =A8 -> 2
A9: =1+A8 -> 3 | B9: coffee | C9: caffè | F9: 0 | G9: =IF(OR($A$5>A9,A9>$A$6),0,(F9+1)/$H$5+G8) -> 0.6 | H9: 3 | M9: =Drill!M9 -> Step trans: | N9: 1 | O9: =IF(ISERR(FIND(O6,N9)),N9,LEFT(N9,FIND(O6,N9)-1)&O5&MID(N9,FIND(O6,N9)+1,LEN(N9))) -> à | P9: =IF(ISERR(FIND(P6,O9)),O9,LEFT(O9,FIND(P6,O9)-1)&P5&MID(O9,FIND(P6,O9)+1,LEN(O9))) -> à | Q9: à | R9: à | S9: à | T9: à | U9: à | V9: à | W9: à | X9: à | Y9: à | Z9: à | AA9: à | AB9: à | AC9: à | AD9: à | AE9: à | AF9: à | AG9: à | AH9: à | AI9: à | AJ9: à | AK9: à | AL9: à | AM9: à | AN9: à | AO9: à | AP9: à | AQ9: à | AR9: à | AS9: à | AT9: à | AU9: à | AV9: à | AW9: à | AX9: à
A10: 4 | B10: roll | C10: panino | F10: 0 | G10: =IF($A$5>A10,0,IF(A10>$A$6,1,(F10+1)/$H$5+G9)) -> 0.8 | H10: 4 | M10: =Drill!M10 -> W/char: | N10: =IF(N9=0,"",IF(AX9=0,"",AX9)) -> à
A11: 5 | B11: sugar | C11: zucchero | F11: 0 | G11: =IF($A$5>A11,0,IF(A11>$A$6,1,(F11+1)/$H$5+G10)) -> 1 | H11: 5
A12: 6 | F12: 0 | G12: 1 | H12: 6
A13: 7 | F13: 0 | G13: 1 | H13: 7
A14: 8 | F14: 0 | G14: 1 | H14: 8
A15: 9 | F15: 0 | G15: 1 | H15: 9
A16: 10 | F16: 0 | G16: 1 | H16: 10
A17: 11 | F17: 0 | G17: 1 | H17: 11
A18: 12 | F18: 0 | G18: 1 | H18: 12
A19: 13 | F19: 0 | G19: 1 | H19: 13
A20: 14 | F20: 0 | G20: 1 | H20: 14
A21: 15 | F21: 0 | G21: 1 | H21: 15
A22: 16 | F22: 0 | G22: 1 | H22: 16
A23: 17 | F23: 0 | G23: 1 | H23: 17
A24: 18 | F24: 0 | G24: 1 | H24: 18
A25: 19 | F25: 0 | G25: 1 | H25: 19
A26: 20 | F26: 0 | G26: 1 | H26: 20
A27: 21 | F27: 0 | G27: 1 | H27: 21
A28: 22 | F28: 0 | G28: 1 | H28: 22
A29: 23 | F29: 0 | G29: 1 | H29: 23
A30: 24 | F30: 0 | G30: 1 | H30: 24
A31: 25 | F31: 0 | G31: 1 | H31: 25
A32: 26 | F32: 0 | G32: 1 | H32: 26
A33: 27 | F33: 0 | G33: 1 | H33: 27
A34: 28 | F34: 0 | G34: 1 | H34: 28
A35: 29 | F35: 0 | G35: 1 | H35: 29
A36: 30 | F36: 0 | G36: 1 | H36: 30
A37: 31 | F37: 0 | G37: 1 | H37: 31
A38: 32 | F38: 0 | G38: 1 | H38: 32
A39: 33 | F39: 0 | G39: 1 | H39: 33
A40: 34 | F40: 0 | G40: 1 | H40: 34
A41: 35 | F41: 0 | G41: 1 | H41: 35
A42: 36 | F42: 0 | G42: 1 | H42: 36
A43: 37 | F43: 0 | G43: 1 | H43: 37
A44: 38 | F44: 0 | G44: 1 | H44: 38
A45: 39 | F45: 0 | G45: 1 | H45: 39
A46: 40 | F46: 0 | G46: 1 | H46: 40
A47: 41 | F47: 0 | G47: 1 | H47: 41
A48: 42 | F48: 0 | G48: 1 | H48: 42
A49: 43 | F49: 0 | G49: 1 | H49: 43
A50: 44 | F50: 0 | G50: 1 | H50: 44
A51: 45 | F51: 0 | G51: 1 | H51: 45
A52: 46 | F52: 0 | G52: 1 | H52: 46
A53: 47 | F53: 0 | G53: 1 | H53: 47
A54: 48 | F54: 0 | G54: 1 | H54: 48
A55: 49 | F55: 0 | G55: 1 | H55: 49
A56: 50 | F56: 0 | G56: 1 | H56: 50
A57: 51 | F57: 0 | G57: 1 | H57: 51
A58: 52 | F58: 0 | G58: 1 | H58: 52
A59: 53 | F59: 0 | G59: 1 | H59: 53
A60: 54 | F60: 0 | G60: 1 | H60: 54
A61: 55 | F61: 0 | G61: 1 | H61: 55
A62: 56 | F62: 0 | G62: 1 | H62: 56
A63: 57 | F63: 0 | G63: 1 | H63: 57
A64: 58 | F64: 0 | G64: 1 | H64: 58
A65: 59 | F65: 0 | G65: 1 | H65: 59
A66: 60 | F66: 0 | G66: 1 | H66: 60
A67: 61 | F67: 0 | G67: 1 | H67: 61
A68: 62 | F68: 0 | G68: 1 | H68: 62
A69: 63 | F69: 0 | G69: 1 | H69: 63
A70: 64 | F70: 0 | G70: 1 | H70: 64
A71: 65 | F71: 0 | G71: 1 | H71: 65
A72: 66 | F72: 0 | G72: 1 | H72: =A72 -> 66
A73: =1+A72 -> 67 | F73: 0 | G73: 1 | H73: 67
A74: 68 | F74: 0 | G74: 1 | H74: 68
A75: 69 | F75: 0 | G75: =IF($A$5>A75,0,IF(A75>$A$6,1,(F75+1)/$H$5+G74)) -> 1 | H75: 69
A76: 70 | F76: 0 | G76: 1 | H76: 70
A77: 71 | F77: 0 | G77: 1 | H77: 71
A78: 72 | F78: 0 | G78: 1 | H78: 72
A79: 73 | F79: 0 | G79: 1 | H79: 73
A80: 74 | F80: 0 | G80: 1 | H80: 74
A81: 75 | F81: 0 | G81: 1 | H81: 75
A82: 76 | F82: 0 | G82: 1 | H82: 76
A83: 77 | F83: 0 | G83: 1 | H83: 77
A84: 78 | F84: 0 | G84: 1 | H84: 78
A85: 79 | F85: 0 | G85: 1 | H85: 79
A86: 80 | F86: 0 | G86: 1 | H86: 80
A87: 81 | F87: 0 | G87: 1 | H87: 81
A88: 82 | F88: 0 | G88: 1 | H88: 82
A89: 83 | F89: 0 | G89: 1 | H89: 83
A90: 84 | F90: 0 | G90: 1 | H90: 84
A91: 85 | F91: 0 | G91: 1 | H91: 85
A92: 86 | F92: 0 | G92: 1 | H92: 86
A93: 87 | F93: 0 | G93: 1 | H93: 87
A94: 88 | F94: 0 | G94: 1 | H94: 88
A95: 89 | F95: 0 | G95: 1 | H95: 89
A96: 90 | F96: 0 | G96: 1 | H96: 90
A97: 91 | F97: 0 | G97: 1 | H97: 91
A98: 92 | F98: 0 | G98: 1 | H98: 92
A99: 93 | F99: 0 | G99: 1 | H99: 93
A100: 94 | F100: 0 | G100: 1 | H100: 94
A101: 95 | F101: 0 | G101: 1 | H101: 95
A102: 96 | F102: 0 | G102: 1 | H102: 96
A103: 97 | F103: 0 | G103: 1 | H103: 97
A104: 98 | F104: 0 | G104: 1 | H104: 98
A105: 99 | F105: 0 | G105: 1 | H105: 99
A106: 100 | F106: 0 | G106: 1 | H106: 100
A107: 101 | F107: 0 | G107: 1 | H107: 101
A108: 102 | F108: 0 | G108: 1 | H108: 102
A109: 103 | F109: 0 | G109: 1 | H109: 103
A110: 104 | F110: 0 | G110: 1 | H110: 104
A111: 105 | F111: 0 | G111: 1 | H111: 105
A112: 106 | F112: 0 | G112: 1 | H112: 106
A113: 107 | F113: 0 | G113: 1 | H113: 107
A114: 108 | F114: 0 | G114: 1 | H114: 108
A115: 109 | F115: 0 | G115: 1 | H115: 109
A116: 110 | F116: 0 | G116: 1 | H116: 110
A117: 111 | F117: 0 | G117: 1 | H117: 111
A118: 112 | F118: 0 | G118: 1 | H118: 112
A119: 113 | F119: 0 | G119: 1 | H119: 113
A120: 114 | F120: 0 | G120: 1 | H120: 114
A121: 115 | F121: 0 | G121: 1 | H121: 115
A122: 116 | F122: 0 | G122: 1 | H122: 116
A123: 117 | F123: 0 | G123: 1 | H123: 117
A124: 118 | F124: 0 | G124: 1 | H124: 118
A125: 119 | F125: 0 | G125: 1 | H125: 119
A126: 120 | F126: 0 | G126: 1 | H126: 120
A127: 121 | F127: 0 | G127: 1 | H127: 121
A128: 122 | F128: 0 | G128: 1 | H128: 122
A129: 123 | F129: 0 | G129: 1 | H129: 123
A130: 124 | F130: 0 | G130: 1 | H130: 124
A131: 125 | F131: 0 | G131: 1 | H131: 125
A132: 126 | F132: 0 | G132: 1 | H132: 126
A133: 127 | F133: 0 | G133: 1 | H133: 127
A134: 128 | F134: 0 | G134: 1 | H134: 128
A135: 129 | F135: 0 | G135: 1 | H135: 129
A136: 130 | F136: 0 | G136: 1 | H136: =A136 -> 130
A137: =1+A136 -> 131 | F137: 0 | G137: 1 | H137: 131
A138: 132 | F138: 0 | G138: 1 | H138: 132
A139: 133 | F139: 0 | G139: =IF($A$5>A139,0,IF(A139>$A$6,1,(F139+1)/$H$5+G138)) -> 1 | H139: 133
A140: 134 | F140: 0 | G140: 1 | H140: 134
A141: 135 | F141: 0 | G141: 1 | H141: 135
A142: 136 | F142: 0 | G142: 1 | H142: 136
A143: 137 | F143: 0 | G143: 1 | H143: 137
A144: 138 | F144: 0 | G144: 1 | H144: 138
A145: 139 | F145: 0 | G145: 1 | H145: 139
A146: 140 | F146: 0 | G146: 1 | H146: 140
A147: 141 | F147: 0 | G147: 1 | H147: 141
A148: 142 | F148: 0 | G148: 1 | H148: 142
A149: 143 | F149: 0 | G149: 1 | H149: 143
A150: 144 | F150: 0 | G150: 1 | H150: 144
A151: 145 | F151: 0 | G151: 1 | H151: 145
A152: 146 | F152: 0 | G152: 1 | H152: 146
A153: 147 | F153: 0 | G153: 1 | H153: 147
A154: 148 | F154: 0 | G154: 1 | H154: 148
A155: 149 | F155: 0 | G155: 1 | H155: 149
A156: 150 | F156: 0 | G156: 1 | H156: 150
A157: 151 | F157: 0 | G157: 1 | H157: 151
A158: 152 | F158: 0 | G158: 1 | H158: 152
A159: 153 | F159: 0 | G159: 1 | H159: 153
A160: 154 | F160: 0 | G160: 1 | H160: 154
A161: 155 | F161: 0 | G161: 1 | H161: 155
A162: 156 | F162: 0 | G162: 1 | H162: 156
A163: 157 | F163: 0 | G163: 1 | H163: 157
A164: 158 | F164: 0 | G164: 1 | H164: 158
A165: 159 | F165: 0 | G165: 1 | H165: 159
A166: 160 | F166: 0 | G166: 1 | H166: 160
A167: 161 | F167: 0 | G167: 1 | H167: 161
A168: 162 | F168: 0 | G168: 1 | H168: 162
A169: 163 | F169: 0 | G169: 1 | H169: 163
A170: 164 | F170: 0 | G170: 1 | H170: 164
A171: 165 | F171: 0 | G171: 1 | H171: 165
A172: 166 | F172: 0 | G172: 1 | H172: 166
A173: 167 | F173: 0 | G173: 1 | H173: 167
A174: 168 | F174: 0 | G174: 1 | H174: 168
A175: 169 | F175: 0 | G175: 1 | H175: 169
A176: 170 | F176: 0 | G176: 1 | H176: 170
A177: 171 | F177: 0 | G177: 1 | H177: 171
A178: 172 | F178: 0 | G178: 1 | H178: 172
A179: 173 | F179: 0 | G179: 1 | H179: 173
A180: 174 | F180: 0 | G180: 1 | H180: 174
A181: 175 | F181: 0 | G181: 1 | H181: 175
A182: 176 | F182: 0 | G182: 1 | H182: 176
A183: 177 | F183: 0 | G183: 1 | H183: 177
A184: 178 | F184: 0 | G184: 1 | H184: 178
A185: 179 | F185: 0 | G185: 1 | H185: 179
A186: 180 | F186: 0 | G186: 1 | H186: 180
A187: 181 | F187: 0 | G187: 1 | H187: 181
A188: 182 | F188: 0 | G188: 1 | H188: 182
A189: 183 | F189: 0 | G189: 1 | H189: 183
A190: 184 | F190: 0 | G190: 1 | H190: 184
A191: 185 | F191: 0 | G191: 1 | H191: 185
A192: 186 | F192: 0 | G192: 1 | H192: 186
A193: 187 | F193: 0 | G193: 1 | H193: 187
A194: 188 | F194: 0 | G194: 1 | H194: 188
A195: 189 | F195: 0 | G195: 1 | H195: 189
A196: 190 | F196: 0 | G196: 1 | H196: 190
A197: 191 | F197: 0 | G197: 1 | H197: 191
A198: 192 | F198: 0 | G198: 1 | H198: 192
A199: 193 | F199: 0 | G199: 1 | H199: 193
A200: 194 | F200: 0 | G200: 1 | H200: =A200 -> 194
A201: =1+A200 -> 195 | F201: 0 | G201: 1 | H201: 195
A202: 196 | F202: 0 | G202: 1 | H202: 196
A203: 197 | F203: 0 | G203: =IF($A$5>A203,0,IF(A203>$A$6,1,(F203+1)/$H$5+G202)) -> 1 | H203: 197
... 2836 more rows
